Workbook

Sheet Прайс лист
B2: Прайс лист: Белье коллекционное | H2: в достаточном количестве
H3: мало на складе
B4: Цена базовая | C4: =SUM($X:$X)/(1 - $F$9)*1 -> 0 | D4: Предоплата 70-120 т.р. скидка 18% | E4: =SUM($X:$X)/(1 - $F$9)*0.82 -> 0 | H4: нет на складе
B5: Предоплата 20-40 т.р. скидка 12% | C5: =SUM($X:$X)/(1 - $F$9)*0.88 -> 0 | D5: Предоплата 120-200 т.р. скидка 21% | E5: =SUM($X:$X)/(1 - $F$9)*0.79 -> 0 | H5: не производится
B6: Предоплата 40-70 т.р. скидка 15% | C6: =SUM($X:$X)/(1 - $F$9)*0.85 -> 0 | D6: Предоплата от 200 т.р. скидка 23% | E6: =SUM($X:$X)/(1 - $F$9)*0.77 -> 0 | H6: Цена не менялась с 2014 года
B8: Артикул | C8: Тип полотна / состав | D8: Цвет/Набивка/Печать/Цвет низа/ Цвет бейки/Цвет рукавов | E8: Цена базовая | F8: СКИДКА | G8: Рост-Размер | X8: Сумма | BG8: Примечание
F9: 0.12 | G9: 44-74 | H9: 46-80 | I9: 48-86 | J9: 50-92 | K9: 52-98 | L9: 54-104 | M9: 56-110 | N9: 60-116 | O9: 62-122 | P9: 64-128 | Q9: 68-134 | R9: 72-140 | S9: 76-146 | T9: 80-152 | U9: 84-158 | V9: 88-164 | W9: 92-170
B10: Коллекция "Ажур"
B11: [303117]Гарнитур для девочки ДНГ561700 | C11: ажур / хлопок 80% + полиэстер 20% | D11: белый / белые цветы / - / - / - / - | E11: 235-260 | F11: =IF(MIN(Y11:AO11)=MAX(Y11:AO11),ROUND(MIN(Y11:AO11)*(1-$F$9),0),ROUND(MIN(Y11:AO11)*(1-$F$9),0)&"-"&ROUND(MAX(Y11:AO11)*(1-$F$9),0)) -> 207-229 | X11: =(G11*Y11+H11*Z11+I11*AA11+J11*AB11+K11*AC11+L11*AD11+M11*AE11+N11*AF11+O11*AG11+P11*AH11+Q11*AI11+R11*AJ11+S11*AK11+T11*AL11+U11*AM11+V11*AN11+W11*AO11)*(1-$F$9) -> 0 | AG11: 235 | AH11: 235 | AI11: 235 | AJ11: 235 | AK11: 260 | AL11: 260 | AM11: 260 | AX11: 303116 | AY11: 303118 | AZ11: 303119 | BA11: 303120 | BB11: 303121 | BC11: 303122 | BD11: 303123
B12: [303125]Гарнитур для девочки ДНГ562700 | C12: ажур / хлопок 80% + полиэстер 20% | D12: белый / белые цветы / - / - / - / - | E12: 235-260 | F12: =IF(MIN(Y12:AO12)=MAX(Y12:AO12),ROUND(MIN(Y12:AO12)*(1-$F$9),0),ROUND(MIN(Y12:AO12)*(1-$F$9),0)&"-"&ROUND(MAX(Y12:AO12)*(1-$F$9),0)) -> 207-229 | X12: =(G12*Y12+H12*Z12+I12*AA12+J12*AB12+K12*AC12+L12*AD12+M12*AE12+N12*AF12+O12*AG12+P12*AH12+Q12*AI12+R12*AJ12+S12*AK12+T12*AL12+U12*AM12+V12*AN12+W12*AO12)*(1-$F$9) -> 0 | AG12: 235 | AH12: 235 | AI12: 235 | AJ12: 235 | AK12: 260 | AL12: 260 | AM12: 260 | AX12: 303124 | AY12: 303126 | AZ12: 303127 | BA12: 303128 | BB12: 303129 | BC12: 303130 | BD12: 303131
B13: [303093]Майка для девочки ДНМ665700 | C13: ажур / хлопок 80% + полиэстер 20% | D13: белый / белые цветы / - / - / - / - | E13: 150-170 | F13: =IF(MIN(Y13:AO13)=MAX(Y13:AO13),ROUND(MIN(Y13:AO13)*(1-$F$9),0),ROUND(MIN(Y13:AO13)*(1-$F$9),0)&"-"&ROUND(MAX(Y13:AO13)*(1-$F$9),0)) -> 132-150 | X13: =(G13*Y13+H13*Z13+I13*AA13+J13*AB13+K13*AC13+L13*AD13+M13*AE13+N13*AF13+O13*AG13+P13*AH13+Q13*AI13+R13*AJ13+S13*AK13+T13*AL13+U13*AM13+V13*AN13+W13*AO13)*(1-$F$9) -> 0 | AG13: 150 | AH13: 150 | AI13: 150 | AJ13: 150 | AK13: 170 | AL13: 170 | AM13: 170 | AX13: 303092 | AY13: 303094 | AZ13: 303095 | BA13: 303096 | BB13: 303097 | BC13: 303098 | BD13: 303099
B14: [295321]Майка для девочки ДНМ665700 | C14: ажур / хлопок 80% + полиэстер 20% | D14: черный / цветочки / - / - / - / - | E14: 150-170 | F14: =IF(MIN(Y14:AO14)=MAX(Y14:AO14),ROUND(MIN(Y14:AO14)*(1-$F$9),0),ROUND(MIN(Y14:AO14)*(1-$F$9),0)&"-"&ROUND(MAX(Y14:AO14)*(1-$F$9),0)) -> 132-150 | X14: =(G14*Y14+H14*Z14+I14*AA14+J14*AB14+K14*AC14+L14*AD14+M14*AE14+N14*AF14+O14*AG14+P14*AH14+Q14*AI14+R14*AJ14+S14*AK14+T14*AL14+U14*AM14+V14*AN14+W14*AO14)*(1-$F$9) -> 0 | AG14: 150 | AH14: 150 | AI14: 150 | AJ14: 150 | AK14: 170 | AL14: 170 | AM14: 170 | AX14: 295320 | AY14: 295322 | AZ14: 295323 | BA14: 295324 | BB14: 295325 | BC14: 295326 | BD14: 295327
B15: [303101]Майка для девочки ДНМ973700 | C15: ажур / хлопок 80% + полиэстер 20% | D15: белый / белые цветы / - / - / - / - | E15: 150-170 | F15: =IF(MIN(Y15:AO15)=MAX(Y15:AO15),ROUND(MIN(Y15:AO15)*(1-$F$9),0),ROUND(MIN(Y15:AO15)*(1-$F$9),0)&"-"&ROUND(MAX(Y15:AO15)*(1-$F$9),0)) -> 132-150 | X15: =(G15*Y15+H15*Z15+I15*AA15+J15*AB15+K15*AC15+L15*AD15+M15*AE15+N15*AF15+O15*AG15+P15*AH15+Q15*AI15+R15*AJ15+S15*AK15+T15*AL15+U15*AM15+V15*AN15+W15*AO15)*(1-$F$9) -> 0 | AG15: 150 | AH15: 150 | AI15: 150 | AJ15: 150 | AK15: 170 | AL15: 170 | AM15: 170 | AX15: 303100 | AY15: 303102 | AZ15: 303103 | BA15: 303104 | BB15: 303105 | BC15: 303106 | BD15: 303107
B16: [308265]Майка для девочки ДНМ973700 | C16: ажур / хлопок 80% + полиэстер 20% | D16: белый / узоры / - / - / - / - | E16: 150-170 | F16: =IF(MIN(Y16:AO16)=MAX(Y16:AO16),ROUND(MIN(Y16:AO16)*(1-$F$9),0),ROUND(MIN(Y16:AO16)*(1-$F$9),0)&"-"&ROUND(MAX(Y16:AO16)*(1-$F$9),0)) -> 132-150 | X16: =(G16*Y16+H16*Z16+I16*AA16+J16*AB16+K16*AC16+L16*AD16+M16*AE16+N16*AF16+O16*AG16+P16*AH16+Q16*AI16+R16*AJ16+S16*AK16+T16*AL16+U16*AM16+V16*AN16+W16*AO16)*(1-$F$9) -> 0 | AG16: 150 | AH16: 150 | AI16: 150 | AJ16: 150 | AK16: 170 | AL16: 170 | AM16: 170 | AX16: 308264 | AY16: 308266 | AZ16: 308267 | BA16: 308268 | BB16: 308269 | BC16: 308270 | BD16: 308271
B17: [303109]Трусы для девочки ДНТ435700 | C17: ажур / хлопок 80% + полиэстер 20% | D17: белый / белые цветы / - / - / - / - | E17: 85-90 | F17: =IF(MIN(Y17:AO17)=MAX(Y17:AO17),ROUND(MIN(Y17:AO17)*(1-$F$9),0),ROUND(MIN(Y17:AO17)*(1-$F$9),0)&"-"&ROUND(MAX(Y17:AO17)*(1-$F$9),0)) -> 75-79 | X17: =(G17*Y17+H17*Z17+I17*AA17+J17*AB17+K17*AC17+L17*AD17+M17*AE17+N17*AF17+O17*AG17+P17*AH17+Q17*AI17+R17*AJ17+S17*AK17+T17*AL17+U17*AM17+V17*AN17+W17*AO17)*(1-$F$9) -> 0 | AG17: 85 | AH17: 85 | AI17: 85 | AJ17: 85 | AK17: 90 | AL17: 90 | AM17: 90 | AX17: 303108 | AY17: 303110 | AZ17: 303111 | BA17: 303112 | BB17: 303113 | BC17: 303114 | BD17: 303115
B18: [489724]Трусы для девочки ДНТ435700 | C18: ажур / хлопок 80% + полиэстер 20% | D18: белый / ромбики / - / - / - / - | E18: 85-90 | F18: =IF(MIN(Y18:AO18)=MAX(Y18:AO18),ROUND(MIN(Y18:AO18)*(1-$F$9),0),ROUND(MIN(Y18:AO18)*(1-$F$9),0)&"-"&ROUND(MAX(Y18:AO18)*(1-$F$9),0)) -> 75-79 | X18: =(G18*Y18+H18*Z18+I18*AA18+J18*AB18+K18*AC18+L18*AD18+M18*AE18+N18*AF18+O18*AG18+P18*AH18+Q18*AI18+R18*AJ18+S18*AK18+T18*AL18+U18*AM18+V18*AN18+W18*AO18)*(1-$F$9) -> 0 | AG18: 85 | AH18: 85 | AI18: 85 | AJ18: 85 | AK18: 90 | AL18: 90 | AM18: 90 | AX18: 353051 | AY18: 353052 | AZ18: 353053 | BA18: 353054 | BB18: 353055 | BC18: 353056 | BD18: 353057
B19: [308273]Трусы для девочки ДНТ435700 | C19: ажур / хлопок 80% + полиэстер 20% | D19: белый / узоры / - / - / - / - | E19: 85-90 | F19: =IF(MIN(Y19:AO19)=MAX(Y19:AO19),ROUND(MIN(Y19:AO19)*(1-$F$9),0),ROUND(MIN(Y19:AO19)*(1-$F$9),0)&"-"&ROUND(MAX(Y19:AO19)*(1-$F$9),0)) -> 75-79 | X19: =(G19*Y19+H19*Z19+I19*AA19+J19*AB19+K19*AC19+L19*AD19+M19*AE19+N19*AF19+O19*AG19+P19*AH19+Q19*AI19+R19*AJ19+S19*AK19+T19*AL19+U19*AM19+V19*AN19+W19*AO19)*(1-$F$9) -> 0 | AG19: 85 | AH19: 85 | AI19: 85 | AJ19: 85 | AK19: 90 | AL19: 90 | AM19: 90 | AX19: 308272 | AY19: 308274 | AZ19: 308275 | BA19: 308276 | BB19: 308277 | BC19: 308278 | BD19: 308279
B20: Коллекция "Африканские зверушки"
B21: [487211]Гарнитур для мальчика ПНГ173001 | C21: кулир / хлопок 100% | D21: желтый+зеленый / - / Львенок / - / зеленый / - | E21: 218 | F21: =IF(MIN(Y21:AO21)=MAX(Y21:AO21),ROUND(MIN(Y21:AO21)*(1-$F$9),0),ROUND(MIN(Y21:AO21)*(1-$F$9),0)&"-"&ROUND(MAX(Y21:AO21)*(1-$F$9),0)) -> 192 | X21: =(G21*Y21+H21*Z21+I21*AA21+J21*AB21+K21*AC21+L21*AD21+M21*AE21+N21*AF21+O21*AG21+P21*AH21+Q21*AI21+R21*AJ21+S21*AK21+T21*AL21+U21*AM21+V21*AN21+W21*AO21)*(1-$F$9) -> 0 | AA21: 218 | AB21: 218 | AC21: 218 | AD21: 218 | AE21: 218 | AR21: 340571 | AS21: 340572 | AT21: 340573 | AU21: 340574 | AV21: 340575
B22: [487212]Гарнитур для мальчика ПНГ173001 | C22: кулир / хлопок 100% | D22: желтый+зеленый / - / Слоненок / - / зеленый / - | E22: 218 | F22: =IF(MIN(Y22:AO22)=MAX(Y22:AO22),ROUND(MIN(Y22:AO22)*(1-$F$9),0),ROUND(MIN(Y22:AO22)*(1-$F$9),0)&"-"&ROUND(MAX(Y22:AO22)*(1-$F$9),0)) -> 192 | X22: =(G22*Y22+H22*Z22+I22*AA22+J22*AB22+K22*AC22+L22*AD22+M22*AE22+N22*AF22+O22*AG22+P22*AH22+Q22*AI22+R22*AJ22+S22*AK22+T22*AL22+U22*AM22+V22*AN22+W22*AO22)*(1-$F$9) -> 0 | AA22: 218 | AB22: 218 | AC22: 218 | AD22: 218 | AE22: 218 | AR22: 340576 | AS22: 340577 | AT22: 340578 | AU22: 340579 | AV22: 340580
B23: [487213]Гарнитур для мальчика ПНГ173001 | C23: кулир / хлопок 100% | D23: зеленый / - / Жираф / - / зеленый / - | E23: 218 | F23: =IF(MIN(Y23:AO23)=MAX(Y23:AO23),ROUND(MIN(Y23:AO23)*(1-$F$9),0),ROUND(MIN(Y23:AO23)*(1-$F$9),0)&"-"&ROUND(MAX(Y23:AO23)*(1-$F$9),0)) -> 192 | X23: =(G23*Y23+H23*Z23+I23*AA23+J23*AB23+K23*AC23+L23*AD23+M23*AE23+N23*AF23+O23*AG23+P23*AH23+Q23*AI23+R23*AJ23+S23*AK23+T23*AL23+U23*AM23+V23*AN23+W23*AO23)*(1-$F$9) -> 0 | AA23: 218 | AB23: 218 | AC23: 218 | AD23: 218 | AE23: 218 | AR23: 340581 | AS23: 340582 | AT23: 340583 | AU23: 340584 | AV23: 340585
B24: [487214]Гарнитур для мальчика ПНГ173001 | C24: кулир / хлопок 100% | D24: зеленый / - / Тигренок / - / зеленый / - | E24: 218 | F24: =IF(MIN(Y24:AO24)=MAX(Y24:AO24),ROUND(MIN(Y24:AO24)*(1-$F$9),0),ROUND(MIN(Y24:AO24)*(1-$F$9),0)&"-"&ROUND(MAX(Y24:AO24)*(1-$F$9),0)) -> 192 | X24: =(G24*Y24+H24*Z24+I24*AA24+J24*AB24+K24*AC24+L24*AD24+M24*AE24+N24*AF24+O24*AG24+P24*AH24+Q24*AI24+R24*AJ24+S24*AK24+T24*AL24+U24*AM24+V24*AN24+W24*AO24)*(1-$F$9) -> 0 | AA24: 218 | AB24: 218 | AC24: 218 | AD24: 218 | AE24: 218 | AR24: 340586 | AS24: 340587 | AT24: 340588 | AU24: 340589 | AV24: 340590
B25: [487226]Майка для мальчика ПНМ009001 | C25: кулир / хлопок 100% | D25: желтый / - / Львенок / - / зеленый / - | E25: 120 | F25: =IF(MIN(Y25:AO25)=MAX(Y25:AO25),ROUND(MIN(Y25:AO25)*(1-$F$9),0),ROUND(MIN(Y25:AO25)*(1-$F$9),0)&"-"&ROUND(MAX(Y25:AO25)*(1-$F$9),0)) -> 106 | X25: =(G25*Y25+H25*Z25+I25*AA25+J25*AB25+K25*AC25+L25*AD25+M25*AE25+N25*AF25+O25*AG25+P25*AH25+Q25*AI25+R25*AJ25+S25*AK25+T25*AL25+U25*AM25+V25*AN25+W25*AO25)*(1-$F$9) -> 0 | AA25: 120 | AB25: 120 | AC25: 120 | AD25: 120 | AE25: 120 | AR25: 340646 | AS25: 340647 | AT25: 340648 | AU25: 340649 | AV25: 340650
B26: [487227]Майка для мальчика ПНМ009001 | C26: кулир / хлопок 100% | D26: желтый / - / Слоненок / - / зеленый / - | E26: 120 | F26: =IF(MIN(Y26:AO26)=MAX(Y26:AO26),ROUND(MIN(Y26:AO26)*(1-$F$9),0),ROUND(MIN(Y26:AO26)*(1-$F$9),0)&"-"&ROUND(MAX(Y26:AO26)*(1-$F$9),0)) -> 106 | X26: =(G26*Y26+H26*Z26+I26*AA26+J26*AB26+K26*AC26+L26*AD26+M26*AE26+N26*AF26+O26*AG26+P26*AH26+Q26*AI26+R26*AJ26+S26*AK26+T26*AL26+U26*AM26+V26*AN26+W26*AO26)*(1-$F$9) -> 0 | AA26: 120 | AB26: 120 | AC26: 120 | AD26: 120 | AE26: 120 | AR26: 340651 | AS26: 340652 | AT26: 340653 | AU26: 340654 | AV26: 340655
B27: [487230]Майка для мальчика ПНМ009001 | C27: кулир / хлопок 100% | D27: зеленый / - / Жираф / - / зеленый / - | E27: 120 | F27: =IF(MIN(Y27:AO27)=MAX(Y27:AO27),ROUND(MIN(Y27:AO27)*(1-$F$9),0),ROUND(MIN(Y27:AO27)*(1-$F$9),0)&"-"&ROUND(MAX(Y27:AO27)*(1-$F$9),0)) -> 106 | X27: =(G27*Y27+H27*Z27+I27*AA27+J27*AB27+K27*AC27+L27*AD27+M27*AE27+N27*AF27+O27*AG27+P27*AH27+Q27*AI27+R27*AJ27+S27*AK27+T27*AL27+U27*AM27+V27*AN27+W27*AO27)*(1-$F$9) -> 0 | AA27: 120 | AB27: 120 | AC27: 120 | AD27: 120 | AE27: 120 | AR27: 340666 | AS27: 340667 | AT27: 340668 | AU27: 340669 | AV27: 340670
B28: [487229]Майка для мальчика ПНМ009001 | C28: кулир / хлопок 100% | D28: зеленый / - / Львенок / - / зеленый / - | E28: 120 | F28: =IF(MIN(Y28:AO28)=MAX(Y28:AO28),ROUND(MIN(Y28:AO28)*(1-$F$9),0),ROUND(MIN(Y28:AO28)*(1-$F$9),0)&"-"&ROUND(MAX(Y28:AO28)*(1-$F$9),0)) -> 106 | X28: =(G28*Y28+H28*Z28+I28*AA28+J28*AB28+K28*AC28+L28*AD28+M28*AE28+N28*AF28+O28*AG28+P28*AH28+Q28*AI28+R28*AJ28+S28*AK28+T28*AL28+U28*AM28+V28*AN28+W28*AO28)*(1-$F$9) -> 0 | AA28: 120 | AB28: 120 | AC28: 120 | AD28: 120 | AE28: 120 | AR28: 340661 | AS28: 340662 | AT28: 340663 | AU28: 340664 | AV28: 340665
B29: [487232]Майка для мальчика ПНМ009001 | C29: кулир / хлопок 100% | D29: зеленый / - / Тигренок / - / зеленый / - | E29: 120 | F29: =IF(MIN(Y29:AO29)=MAX(Y29:AO29),ROUND(MIN(Y29:AO29)*(1-$F$9),0),ROUND(MIN(Y29:AO29)*(1-$F$9),0)&"-"&ROUND(MAX(Y29:AO29)*(1-$F$9),0)) -> 106 | X29: =(G29*Y29+H29*Z29+I29*AA29+J29*AB29+K29*AC29+L29*AD29+M29*AE29+N29*AF29+O29*AG29+P29*AH29+Q29*AI29+R29*AJ29+S29*AK29+T29*AL29+U29*AM29+V29*AN29+W29*AO29)*(1-$F$9) -> 0 | AA29: 120 | AB29: 120 | AC29: 120 | AD29: 120 | AE29: 120 | AR29: 340676 | AS29: 340677 | AT29: 340678 | AU29: 340679 | AV29: 340680
B30: [318246]Трусы для мальчика ПНП700001 | C30: кулир / хлопок 100% | D30: яркий салат / - / - / - / яркий салат / - | E30: 98 | F30: =IF(MIN(Y30:AO30)=MAX(Y30:AO30),ROUND(MIN(Y30:AO30)*(1-$F$9),0),ROUND(MIN(Y30:AO30)*(1-$F$9),0)&"-"&ROUND(MAX(Y30:AO30)*(1-$F$9),0)) -> 86 | X30: =(G30*Y30+H30*Z30+I30*AA30+J30*AB30+K30*AC30+L30*AD30+M30*AE30+N30*AF30+O30*AG30+P30*AH30+Q30*AI30+R30*AJ30+S30*AK30+T30*AL30+U30*AM30+V30*AN30+W30*AO30)*(1-$F$9) -> 0 | AA30: 98 | AB30: 98 | AC30: 98 | AD30: 98 | AE30: 98 | AR30: 318245 | AS30: 318247 | AT30: 318248 | AU30: 318249 | AV30: 318250
B31: Коллекция "Багира"
B32: [332423]Гарнитур для девочки ДНГ454804 | C32: кулир с лайкрой / хлопок 92% + лайкра 8% | D32: черный / - / Глаза Багиры / - / черный / - | E32: 315 | F32: =IF(MIN(Y32:AO32)=MAX(Y32:AO32),ROUND(MIN(Y32:AO32)*(1-$F$9),0),ROUND(MIN(Y32:AO32)*(1-$F$9),0)&"-"&ROUND(MAX(Y32:AO32)*(1-$F$9),0)) -> 277 | X32: =(G32*Y32+H32*Z32+I32*AA32+J32*AB32+K32*AC32+L32*AD32+M32*AE32+N32*AF32+O32*AG32+P32*AH32+Q32*AI32+R32*AJ32+S32*AK32+T32*AL32+U32*AM32+V32*AN32+W32*AO32)*(1-$F$9) -> 0 | AK32: 315 | AL32: 315 | AM32: 315 | BB32: 332422 | BC32: 332424 | BD32: 332425
B33: [332427]Гарнитур для девочки ДНГ561804 | C33: кулир / хлопок 92% + лайкра 8% | D33: черный / - / Глаза Багиры / - / черный / - | E33: 290 | F33: =IF(MIN(Y33:AO33)=MAX(Y33:AO33),ROUND(MIN(Y33:AO33)*(1-$F$9),0),ROUND(MIN(Y33:AO33)*(1-$F$9),0)&"-"&ROUND(MAX(Y33:AO33)*(1-$F$9),0)) -> 255 | X33: =(G33*Y33+H33*Z33+I33*AA33+J33*AB33+K33*AC33+L33*AD33+M33*AE33+N33*AF33+O33*AG33+P33*AH33+Q33*AI33+R33*AJ33+S33*AK33+T33*AL33+U33*AM33+V33*AN33+W33*AO33)*(1-$F$9) -> 0 | AF33: 290 | AG33: 290 | AH33: 290 | AI33: 290 | AJ33: 290 | AW33: 332426 | AX33: 332428 | AY33: 332429 | AZ33: 332430 | BA33: 332431
B34: [489521]Гарнитур для девочки ДНГ561804 | C34: кулир с лайкрой / хлопок 92% + лайкра 8% | D34: черный / - / Черный кот / черный / черный / - | E34: 290 | F34: =IF(MIN(Y34:AO34)=MAX(Y34:AO34),ROUND(MIN(Y34:AO34)*(1-$F$9),0),ROUND(MIN(Y34:AO34)*(1-$F$9),0)&"-"&ROUND(MAX(Y34:AO34)*(1-$F$9),0)) -> 255 | X34: =(G34*Y34+H34*Z34+I34*AA34+J34*AB34+K34*AC34+L34*AD34+M34*AE34+N34*AF34+O34*AG34+P34*AH34+Q34*AI34+R34*AJ34+S34*AK34+T34*AL34+U34*AM34+V34*AN34+W34*AO34)*(1-$F$9) -> 0 | AF34: 290 | AG34: 290 | AH34: 290 | AI34: 290 | AJ34: 290 | AW34: 352139 | AX34: 352140 | AY34: 352141 | AZ34: 352142 | BA34: 352143
B35: [332433]Гарнитур для девочки ДНГ562804 | C35: кулир / хлопок 92% + лайкра 8% | D35: черный / - / Глаза Багиры / - / черный / - | E35: 290 | F35: =IF(MIN(Y35:AO35)=MAX(Y35:AO35),ROUND(MIN(Y35:AO35)*(1-$F$9),0),ROUND(MIN(Y35:AO35)*(1-$F$9),0)&"-"&ROUND(MAX(Y35:AO35)*(1-$F$9),0)) -> 255 | X35: =(G35*Y35+H35*Z35+I35*AA35+J35*AB35+K35*AC35+L35*AD35+M35*AE35+N35*AF35+O35*AG35+P35*AH35+Q35*AI35+R35*AJ35+S35*AK35+T35*AL35+U35*AM35+V35*AN35+W35*AO35)*(1-$F$9) -> 0 | AF35: 290 | AG35: 290 | AH35: 290 | AI35: 290 | AJ35: 290 | AW35: 332432 | AX35: 332434 | AY35: 332435 | AZ35: 332436 | BA35: 332437
B36: [487130]Гарнитур для девочки ДНГ670804 | C36: кулир с лайкрой / хлопок 92% + лайкра 8% | D36: черный / - / Глаза Багиры / - / черный / - | E36: 315 | F36: =IF(MIN(Y36:AO36)=MAX(Y36:AO36),ROUND(MIN(Y36:AO36)*(1-$F$9),0),ROUND(MIN(Y36:AO36)*(1-$F$9),0)&"-"&ROUND(MAX(Y36:AO36)*(1-$F$9),0)) -> 277 | X36: =(G36*Y36+H36*Z36+I36*AA36+J36*AB36+K36*AC36+L36*AD36+M36*AE36+N36*AF36+O36*AG36+P36*AH36+Q36*AI36+R36*AJ36+S36*AK36+T36*AL36+U36*AM36+V36*AN36+W36*AO36)*(1-$F$9) -> 0 | AK36: 315 | AL36: 315 | AM36: 315 | BB36: 339994 | BC36: 339995 | BD36: 339996
B37: [489522]Гарнитур для девочки ДНГ670804 | C37: кулир с лайкрой / хлопок 92% + лайкра 8% | D37: черный / - / Черный кот / черный / черный / - | E37: 315 | F37: =IF(MIN(Y37:AO37)=MAX(Y37:AO37),ROUND(MIN(Y37:AO37)*(1-$F$9),0),ROUND(MIN(Y37:AO37)*(1-$F$9),0)&"-"&ROUND(MAX(Y37:AO37)*(1-$F$9),0)) -> 277 | X37: =(G37*Y37+H37*Z37+I37*AA37+J37*AB37+K37*AC37+L37*AD37+M37*AE37+N37*AF37+O37*AG37+P37*AH37+Q37*AI37+R37*AJ37+S37*AK37+T37*AL37+U37*AM37+V37*AN37+W37*AO37)*(1-$F$9) -> 0 | AK37: 315 | AL37: 315 | AM37: 315 | BB37: 352144 | BC37: 352145 | BD37: 352146
B38: [491499]Майка для девочки ДНМ309804 | C38: кулир с лайкрой / хлопок 92% + лайкра 8% | D38: черный / - / Следы багиры / - / - / - | E38: 198-205 | F38: =IF(MIN(Y38:AO38)=MAX(Y38:AO38),ROUND(MIN(Y38:AO38)*(1-$F$9),0),ROUND(MIN(Y38:AO38)*(1-$F$9),0)&"-"&ROUND(MAX(Y38:AO38)*(1-$F$9),0)) -> 174-180 | X38: =(G38*Y38+H38*Z38+I38*AA38+J38*AB38+K38*AC38+L38*AD38+M38*AE38+N38*AF38+O38*AG38+P38*AH38+Q38*AI38+R38*AJ38+S38*AK38+T38*AL38+U38*AM38+V38*AN38+W38*AO38)*(1-$F$9) -> 0 | AH38: 198 | AI38: 198 | AJ38: 198 | AK38: 205 | AL38: 205 | AM38: 205 | AY38: 361499 | AZ38: 361500 | BA38: 361501 | BB38: 361502 | BC38: 361503 | BD38: 361504
B39: [491500]Майка для девочки ДНМ310804 | C39: кулир с лайкрой / хлопок 92% + лайкра 8% | D39: черный / - / Следы багиры / - / - / - | E39: 198-205 | F39: =IF(MIN(Y39:AO39)=MAX(Y39:AO39),ROUND(MIN(Y39:AO39)*(1-$F$9),0),ROUND(MIN(Y39:AO39)*(1-$F$9),0)&"-"&ROUND(MAX(Y39:AO39)*(1-$F$9),0)) -> 174-180 | X39: =(G39*Y39+H39*Z39+I39*AA39+J39*AB39+K39*AC39+L39*AD39+M39*AE39+N39*AF39+O39*AG39+P39*AH39+Q39*AI39+R39*AJ39+S39*AK39+T39*AL39+U39*AM39+V39*AN39+W39*AO39)*(1-$F$9) -> 0 | AH39: 198 | AI39: 198 | AJ39: 198 | AK39: 205 | AL39: 205 | AM39: 205 | AY39: 361505 | AZ39: 361506 | BA39: 361507 | BB39: 361508 | BC39: 361509 | BD39: 361510
B40: [489532]Майка для девочки ДНМ664804 | C40: кулир с лайкрой / хлопок 92% + лайкра 8% | D40: черный / - / Черный кот / - / черный / - | E40: 205 | F40: =IF(MIN(Y40:AO40)=MAX(Y40:AO40),ROUND(MIN(Y40:AO40)*(1-$F$9),0),ROUND(MIN(Y40:AO40)*(1-$F$9),0)&"-"&ROUND(MAX(Y40:AO40)*(1-$F$9),0)) -> 180 | X40: =(G40*Y40+H40*Z40+I40*AA40+J40*AB40+K40*AC40+L40*AD40+M40*AE40+N40*AF40+O40*AG40+P40*AH40+Q40*AI40+R40*AJ40+S40*AK40+T40*AL40+U40*AM40+V40*AN40+W40*AO40)*(1-$F$9) -> 0 | AK40: 205 | AL40: 205 | AM40: 205 | BB40: 352185 | BC40: 352186 | BD40: 352187
B41: [318535]Майка для девочки ДНМ665804 | C41: кулир / хлопок 92% + лайкра 8% | D41: черный / - / Глаза Багиры / - / черный / - | E41: 180-205 | F41: =IF(MIN(Y41:AO41)=MAX(Y41:AO41),ROUND(MIN(Y41:AO41)*(1-$F$9),0),ROUND(MIN(Y41:AO41)*(1-$F$9),0)&"-"&ROUND(MAX(Y41:AO41)*(1-$F$9),0)) -> 158-180 | X41: =(G41*Y41+H41*Z41+I41*AA41+J41*AB41+K41*AC41+L41*AD41+M41*AE41+N41*AF41+O41*AG41+P41*AH41+Q41*AI41+R41*AJ41+S41*AK41+T41*AL41+U41*AM41+V41*AN41+W41*AO41)*(1-$F$9) -> 0 | AF41: 180 | AG41: 180 | AH41: 180 | AI41: 180 | AJ41: 180 | AK41: 205 | AL41: 205 | AM41: 205 | AW41: 318534 | AX41: 318536 | AY41: 318537 | AZ41: 318538 | BA41: 318539 | BB41: 330601 | BC41: 330602 | BD41: 330603
B42: [489533]Майка для девочки ДНМ665804 | C42: кулир с лайкрой / хлопок 92% + лайкра 8% | D42: черный / - / Черный кот / - / черный / - | E42: 180 | F42: =IF(MIN(Y42:AO42)=MAX(Y42:AO42),ROUND(MIN(Y42:AO42)*(1-$F$9),0),ROUND(MIN(Y42:AO42)*(1-$F$9),0)&"-"&ROUND(MAX(Y42:AO42)*(1-$F$9),0)) -> 158 | X42: =(G42*Y42+H42*Z42+I42*AA42+J42*AB42+K42*AC42+L42*AD42+M42*AE42+N42*AF42+O42*AG42+P42*AH42+Q42*AI42+R42*AJ42+S42*AK42+T42*AL42+U42*AM42+V42*AN42+W42*AO42)*(1-$F$9) -> 0 | AF42: 180 | AG42: 180 | AH42: 180 | AI42: 180 | AJ42: 180 | AW42: 352188 | AX42: 352189 | AY42: 352190 | AZ42: 352191 | BA42: 352192
B43: [318541]Майка для девочки ДНМ740804 | C43: кулир с лайкрой / хлопок 92% + лайкра 8% | D43: черный / - / Глаза Багиры / - / черный / - | E43: 230 | F43: =IF(MIN(Y43:AO43)=MAX(Y43:AO43),ROUND(MIN(Y43:AO43)*(1-$F$9),0),ROUND(MIN(Y43:AO43)*(1-$F$9),0)&"-"&ROUND(MAX(Y43:AO43)*(1-$F$9),0)) -> 202 | X43: =(G43*Y43+H43*Z43+I43*AA43+J43*AB43+K43*AC43+L43*AD43+M43*AE43+N43*AF43+O43*AG43+P43*AH43+Q43*AI43+R43*AJ43+S43*AK43+T43*AL43+U43*AM43+V43*AN43+W43*AO43)*(1-$F$9) -> 0 | AK43: 230 | AL43: 230 | AM43: 230 | BB43: 318540 | BC43: 318542 | BD43: 318543
B44: [489534]Майка для девочки ДНМ740804 | C44: кулир с лайкрой / хлопок 92% + лайкра 8% | D44: черный / - / Черный кот / - / черный / - | E44: 230 | F44: =IF(MIN(Y44:AO44)=MAX(Y44:AO44),ROUND(MIN(Y44:AO44)*(1-$F$9),0),ROUND(MIN(Y44:AO44)*(1-$F$9),0)&"-"&ROUND(MAX(Y44:AO44)*(1-$F$9),0)) -> 202 | X44: =(G44*Y44+H44*Z44+I44*AA44+J44*AB44+K44*AC44+L44*AD44+M44*AE44+N44*AF44+O44*AG44+P44*AH44+Q44*AI44+R44*AJ44+S44*AK44+T44*AL44+U44*AM44+V44*AN44+W44*AO44)*(1-$F$9) -> 0 | AK44: 230 | AL44: 230 | AM44: 230 | BB44: 352193 | BC44: 352194 | BD44: 352195
B45: [318545]Майка для девочки ДНМ873804 | C45: кулир с лайкрой / хлопок 92% + лайкра 8% | D45: черный / - / Глаза Багиры / - / черный / - | E45: 205 | F45: =IF(MIN(Y45:AO45)=MAX(Y45:AO45),ROUND(MIN(Y45:AO45)*(1-$F$9),0),ROUND(MIN(Y45:AO45)*(1-$F$9),0)&"-"&ROUND(MAX(Y45:AO45)*(1-$F$9),0)) -> 180 | X45: =(G45*Y45+H45*Z45+I45*AA45+J45*AB45+K45*AC45+L45*AD45+M45*AE45+N45*AF45+O45*AG45+P45*AH45+Q45*AI45+R45*AJ45+S45*AK45+T45*AL45+U45*AM45+V45*AN45+W45*AO45)*(1-$F$9) -> 0 | AK45: 205 | AL45: 205 | AM45: 205 | BB45: 318544 | BC45: 318546 | BD45: 318547
B46: [489535]Майка для девочки ДНМ873804 | C46: кулир с лайкрой / хлопок 92% + лайкра 8% | D46: черный / - / Черный кот / - / черный / - | E46: 205 | F46: =IF(MIN(Y46:AO46)=MAX(Y46:AO46),ROUND(MIN(Y46:AO46)*(1-$F$9),0),ROUND(MIN(Y46:AO46)*(1-$F$9),0)&"-"&ROUND(MAX(Y46:AO46)*(1-$F$9),0)) -> 180 | X46: =(G46*Y46+H46*Z46+I46*AA46+J46*AB46+K46*AC46+L46*AD46+M46*AE46+N46*AF46+O46*AG46+P46*AH46+Q46*AI46+R46*AJ46+S46*AK46+T46*AL46+U46*AM46+V46*AN46+W46*AO46)*(1-$F$9) -> 0 | AK46: 205 | AL46: 205 | AM46: 205 | BB46: 352196 | BC46: 352197 | BD46: 352198
B47: [318549]Майка для девочки ДНМ973804 | C47: кулир / хлопок 92% + лайкра 8% | D47: черный / - / Глаза Багиры / - / черный / - | E47: 180 | F47: =IF(MIN(Y47:AO47)=MAX(Y47:AO47),ROUND(MIN(Y47:AO47)*(1-$F$9),0),ROUND(MIN(Y47:AO47)*(1-$F$9),0)&"-"&ROUND(MAX(Y47:AO47)*(1-$F$9),0)) -> 158 | X47: =(G47*Y47+H47*Z47+I47*AA47+J47*AB47+K47*AC47+L47*AD47+M47*AE47+N47*AF47+O47*AG47+P47*AH47+Q47*AI47+R47*AJ47+S47*AK47+T47*AL47+U47*AM47+V47*AN47+W47*AO47)*(1-$F$9) -> 0 | AE47: 180 | AF47: 180 | AG47: 180 | AH47: 180 | AI47: 180 | AJ47: 180 | AV47: 330203 | AW47: 318548 | AX47: 318550 | AY47: 318551 | AZ47: 318552 | BA47: 318553
B48: [491501]Трусы для девочки ДНТ311804 | C48: кулир с лайкрой / хлопок 92% + лайкра 8% | D48: черный / - / Следы багиры / - / - / - | E48: 135-140 | F48: =IF(MIN(Y48:AO48)=MAX(Y48:AO48),ROUND(MIN(Y48:AO48)*(1-$F$9),0),ROUND(MIN(Y48:AO48)*(1-$F$9),0)&"-"&ROUND(MAX(Y48:AO48)*(1-$F$9),0)) -> 119-123 | X48: =(G48*Y48+H48*Z48+I48*AA48+J48*AB48+K48*AC48+L48*AD48+M48*AE48+N48*AF48+O48*AG48+P48*AH48+Q48*AI48+R48*AJ48+S48*AK48+T48*AL48+U48*AM48+V48*AN48+W48*AO48)*(1-$F$9) -> 0 | AH48: 135 | AI48: 135 | AJ48: 135 | AK48: 140 | AL48: 140 | AM48: 140 | AY48: 361511 | AZ48: 361512 | BA48: 361513 | BB48: 361514 | BC48: 361515 | BD48: 361516
B49: [318531]Трусы для девочки ДНТ435804 | C49: кулир / хлопок 92% + лайкра 8% | D49: черный / - / - / - / черный / - | E49: 105 | F49: =IF(MIN(Y49:AO49)=MAX(Y49:AO49),ROUND(MIN(Y49:AO49)*(1-$F$9),0),ROUND(MIN(Y49:AO49)*(1-$F$9),0)&"-"&ROUND(MAX(Y49:AO49)*(1-$F$9),0)) -> 92 | X49: =(G49*Y49+H49*Z49+I49*AA49+J49*AB49+K49*AC49+L49*AD49+M49*AE49+N49*AF49+O49*AG49+P49*AH49+Q49*AI49+R49*AJ49+S49*AK49+T49*AL49+U49*AM49+V49*AN49+W49*AO49)*(1-$F$9) -> 0 | AF49: 105 | AG49: 105 | AH49: 105 | AI49: 105 | AJ49: 105 | AK49: 105 | AL49: 105 | AM49: 105 | AW49: 326002 | AX49: 326003 | AY49: 326004 | AZ49: 326005 | BA49: 326006 | BB49: 318530 | BC49: 318532 | BD49: 318533
B50: [273102]Трусы для девочки ДНТ435804 | C50: кулир / хлопок 92% + лайкра 8% | D50: черный / - / Маленький бантик / - / черный / - | E50: 105 | F50: =IF(MIN(Y50:AO50)=MAX(Y50:AO50),ROUND(MIN(Y50:AO50)*(1-$F$9),0),ROUND(MIN(Y50:AO50)*(1-$F$9),0)&"-"&ROUND(MAX(Y50:AO50)*(1-$F$9),0)) -> 92 | X50: =(G50*Y50+H50*Z50+I50*AA50+J50*AB50+K50*AC50+L50*AD50+M50*AE50+N50*AF50+O50*AG50+P50*AH50+Q50*AI50+R50*AJ50+S50*AK50+T50*AL50+U50*AM50+V50*AN50+W50*AO50)*(1-$F$9) -> 0 | AE50: 105 | AF50: 105 | AG50: 105 | AH50: 105 | AI50: 105 | AJ50: 105 | AK50: 105 | AV50: 273101 | AW50: 273103 | AX50: 273104 | AY50: 273105 | AZ50: 273106 | BA50: 273107 | BB50: 278617
B51: [491502]Трусы для девочки ДНШ312804 | C51: кулир с лайкрой / хлопок 92% + лайкра 8% | D51: черный / - / Следы багиры / - / - / - | E51: 150-160 | F51: =IF(MIN(Y51:AO51)=MAX(Y51:AO51),ROUND(MIN(Y51:AO51)*(1-$F$9),0),ROUND(MIN(Y51:AO51)*(1-$F$9),0)&"-"&ROUND(MAX(Y51:AO51)*(1-$F$9),0)) -> 132-141 | X51: =(G51*Y51+H51*Z51+I51*AA51+J51*AB51+K51*AC51+L51*AD51+M51*AE51+N51*AF51+O51*AG51+P51*AH51+Q51*AI51+R51*AJ51+S51*AK51+T51*AL51+U51*AM51+V51*AN51+W51*AO51)*(1-$F$9) -> 0 | AH51: 150 | AI51: 150 | AJ51: 150 | AK51: 160 | AL51: 160 | AM51: 160 | AY51: 361517 | AZ51: 361518 | BA51: 361519 | BB51: 361520 | BC51: 361521 | BD51: 361522
B52: Коллекция "Белая"
B53: [227685]Гарнитур для девочки ДНГ561001 | C53: кулир / хлопок 100% | D53: белый / - / - / - / - / - | E53: 205-225 | F53: =IF(MIN(Y53:AO53)=MAX(Y53:AO53),ROUND(MIN(Y53:AO53)*(1-$F$9),0),ROUND(MIN(Y53:AO53)*(1-$F$9),0)&"-"&ROUND(MAX(Y53:AO53)*(1-$F$9),0)) -> 180-198 | X53: =(G53*Y53+H53*Z53+I53*AA53+J53*AB53+K53*AC53+L53*AD53+M53*AE53+N53*AF53+O53*AG53+P53*AH53+Q53*AI53+R53*AJ53+S53*AK53+T53*AL53+U53*AM53+V53*AN53+W53*AO53)*(1-$F$9) -> 0 | AG53: 205 | AH53: 205 | AI53: 205 | AJ53: 205 | AK53: 225 | AL53: 225 | AM53: 225 | AX53: 176293 | AY53: 176294 | AZ53: 176295 | BA53: 176296 | BB53: 176297 | BC53: 176298 | BD53: 176299
B54: [227686]Гарнитур для девочки ДНГ562001 | C54: кулир / хлопок 100% | D54: белый / - / - / - / - / - | E54: 205-225 | F54: =IF(MIN(Y54:AO54)=MAX(Y54:AO54),ROUND(MIN(Y54:AO54)*(1-$F$9),0),ROUND(MIN(Y54:AO54)*(1-$F$9),0)&"-"&ROUND(MAX(Y54:AO54)*(1-$F$9),0)) -> 180-198 | X54: =(G54*Y54+H54*Z54+I54*AA54+J54*AB54+K54*AC54+L54*AD54+M54*AE54+N54*AF54+O54*AG54+P54*AH54+Q54*AI54+R54*AJ54+S54*AK54+T54*AL54+U54*AM54+V54*AN54+W54*AO54)*(1-$F$9) -> 0 | AG54: 205 | AH54: 205 | AI54: 205 | AJ54: 205 | AK54: 225 | AL54: 225 | AM54: 225 | AX54: 176300 | AY54: 176301 | AZ54: 176302 | BA54: 176303 | BB54: 176304 | BC54: 205636 | BD54: 205637
B55: [227688]Майка для девочки ДНМ665001 | C55: кулир / хлопок 100% | D55: белый / - / - / - / - / - | E55: 125-140 | F55: =IF(MIN(Y55:AO55)=MAX(Y55:AO55),ROUND(MIN(Y55:AO55)*(1-$F$9),0),ROUND(MIN(Y55:AO55)*(1-$F$9),0)&"-"&ROUND(MAX(Y55:AO55)*(1-$F$9),0)) -> 110-123 | X55: =(G55*Y55+H55*Z55+I55*AA55+J55*AB55+K55*AC55+L55*AD55+M55*AE55+N55*AF55+O55*AG55+P55*AH55+Q55*AI55+R55*AJ55+S55*AK55+T55*AL55+U55*AM55+V55*AN55+W55*AO55)*(1-$F$9) -> 0 | AG55: 125 | AH55: 125 | AI55: 125 | AJ55: 125 | AK55: 140 | AL55: 140 | AM55: 140 | AX55: 170930 | AY55: 170931 | AZ55: 170932 | BA55: 170933 | BB55: 170934 | BC55: 170935 | BD55: 170936
B56: [227689]Майка для девочки ДНМ973001 | C56: кулир / хлопок 100% | D56: белый / - / - / - / - / - | E56: 125-140 | F56: =IF(MIN(Y56:AO56)=MAX(Y56:AO56),ROUND(MIN(Y56:AO56)*(1-$F$9),0),ROUND(MIN(Y56:AO56)*(1-$F$9),0)&"-"&ROUND(MAX(Y56:AO56)*(1-$F$9),0)) -> 110-123 | X56: =(G56*Y56+H56*Z56+I56*AA56+J56*AB56+K56*AC56+L56*AD56+M56*AE56+N56*AF56+O56*AG56+P56*AH56+Q56*AI56+R56*AJ56+S56*AK56+T56*AL56+U56*AM56+V56*AN56+W56*AO56)*(1-$F$9) -> 0 | AG56: 125 | AH56: 125 | AI56: 125 | AJ56: 125 | AK56: 140 | AL56: 140 | AM56: 140 | AX56: 170939 | AY56: 170940 | AZ56: 170941 | BA56: 170942 | BB56: 170943 | BC56: 170944 | BD56: 170945
B57: [227691]Трусы для девочки ДНТ435001 | C57: кулир / хлопок 100% | D57: белый / - / - / - / - / - | E57: 80-85 | F57: =IF(MIN(Y57:AO57)=MAX(Y57:AO57),ROUND(MIN(Y57:AO57)*(1-$F$9),0),ROUND(MIN(Y57:AO57)*(1-$F$9),0)&"-"&ROUND(MAX(Y57:AO57)*(1-$F$9),0)) -> 70-75 | X57: =(G57*Y57+H57*Z57+I57*AA57+J57*AB57+K57*AC57+L57*AD57+M57*AE57+N57*AF57+O57*AG57+P57*AH57+Q57*AI57+R57*AJ57+S57*AK57+T57*AL57+U57*AM57+V57*AN57+W57*AO57)*(1-$F$9) -> 0 | AG57: 80 | AH57: 80 | AI57: 80 | AJ57: 80 | AK57: 85 | AL57: 85 | AM57: 85 | AX57: 176457 | AY57: 176458 | AZ57: 176459 | BA57: 176460 | BB57: 176461 | BC57: 176462 | BD57: 176463
B58: Коллекция "Бриз"
B59: [299443]Гарнитур для мальчика ПНГ173021м | C59: ластик / хлопок 70% + полиэстер 30% | D59: - / серый+полоска голубой / - / - / серый / - | E59: 240-250 | F59: =IF(MIN(Y59:AO59)=MAX(Y59:AO59),ROUND(MIN(Y59:AO59)*(1-$F$9),0),ROUND(MIN(Y59:AO59)*(1-$F$9),0)&"-"&ROUND(MAX(Y59:AO59)*(1-$F$9),0)) -> 211-220 | X59: =(G59*Y59+H59*Z59+I59*AA59+J59*AB59+K59*AC59+L59*AD59+M59*AE59+N59*AF59+O59*AG59+P59*AH59+Q59*AI59+R59*AJ59+S59*AK59+T59*AL59+U59*AM59+V59*AN59+W59*AO59)*(1-$F$9) -> 0 | AC59: 240 | AD59: 240 | AE59: 240 | AF59: 250 | AG59: 250 | AH59: 250 | AT59: 299444 | AU59: 299445 | AV59: 299446 | AW59: 299447 | AX59: 300371 | AY59: 300372
B60: [299437]Гарнитур для мальчика ПНГ173824 | C60: ластик / хлопок 70% + полиэстер 30% | D60: серый / - / Якорь / - / серый / - | E60: 240-250 | F60: =IF(MIN(Y60:AO60)=MAX(Y60:AO60),ROUND(MIN(Y60:AO60)*(1-$F$9),0),ROUND(MIN(Y60:AO60)*(1-$F$9),0)&"-"&ROUND(MAX(Y60:AO60)*(1-$F$9),0)) -> 211-220 | X60: =(G60*Y60+H60*Z60+I60*AA60+J60*AB60+K60*AC60+L60*AD60+M60*AE60+N60*AF60+O60*AG60+P60*AH60+Q60*AI60+R60*AJ60+S60*AK60+T60*AL60+U60*AM60+V60*AN60+W60*AO60)*(1-$F$9) -> 0 | AC60: 240 | AD60: 240 | AE60: 240 | AF60: 250 | AG60: 250 | AH60: 250 | AT60: 299438 | AU60: 299439 | AV60: 299440 | AW60: 299441 | AX60: 300387 | AY60: 300388
B61: [299449]Гарнитур для мальчика ПНГ474824 | C61: ластик / хлопок 70% + полиэстер 30% | D61: серый / - / Якорь / - / серый / - | E61: 260-270 | F61: =IF(MIN(Y61:AO61)=MAX(Y61:AO61),ROUND(MIN(Y61:AO61)*(1-$F$9),0),ROUND(MIN(Y61:AO61)*(1-$F$9),0)&"-"&ROUND(MAX(Y61:AO61)*(1-$F$9),0)) -> 229-238 | X61: =(G61*Y61+H61*Z61+I61*AA61+J61*AB61+K61*AC61+L61*AD61+M61*AE61+N61*AF61+O61*AG61+P61*AH61+Q61*AI61+R61*AJ61+S61*AK61+T61*AL61+U61*AM61+V61*AN61+W61*AO61)*(1-$F$9) -> 0 | AC61: 260 | AD61: 260 | AE61: 260 | AF61: 270 | AG61: 270 | AH61: 270 | AT61: 299451 | AU61: 299452 | AV61: 299453 | AW61: 299454 | AX61: 300389 | AY61: 300390
B62: [299456]Гарнитур для мальчика ПНГ724021м | C62: ластик / хлопок 70% + полиэстер 30% | D62: - / серый+полоска голубой / - / - / серый / - | E62: 275-285 | F62: =IF(MIN(Y62:AO62)=MAX(Y62:AO62),ROUND(MIN(Y62:AO62)*(1-$F$9),0),ROUND(MIN(Y62:AO62)*(1-$F$9),0)&"-"&ROUND(MAX(Y62:AO62)*(1-$F$9),0)) -> 242-251 | X62: =(G62*Y62+H62*Z62+I62*AA62+J62*AB62+K62*AC62+L62*AD62+M62*AE62+N62*AF62+O62*AG62+P62*AH62+Q62*AI62+R62*AJ62+S62*AK62+T62*AL62+U62*AM62+V62*AN62+W62*AO62)*(1-$F$9) -> 0 | AC62: 275 | AD62: 275 | AE62: 275 | AF62: 285 | AG62: 285 | AH62: 285 | AT62: 299458 | AU62: 299459 | AV62: 299460 | AW62: 299461 | AX62: 300373 | AY62: 300374
B63: [299397]Майка для мальчика ПНМ009021м | C63: ластик / хлопок 70% + полиэстер 30% | D63: - / полоска голубой / - / - / серый / - | E63: 130-140 | F63: =IF(MIN(Y63:AO63)=MAX(Y63:AO63),ROUND(MIN(Y63:AO63)*(1-$F$9),0),ROUND(MIN(Y63:AO63)*(1-$F$9),0)&"-"&ROUND(MAX(Y63:AO63)*(1-$F$9),0)) -> 114-123 | X63: =(G63*Y63+H63*Z63+I63*AA63+J63*AB63+K63*AC63+L63*AD63+M63*AE63+N63*AF63+O63*AG63+P63*AH63+Q63*AI63+R63*AJ63+S63*AK63+T63*AL63+U63*AM63+V63*AN63+W63*AO63)*(1-$F$9) -> 0 | AC63: 130 | AD63: 130 | AE63: 130 | AF63: 140 | AG63: 140 | AH63: 140 | AT63: 299399 | AU63: 299400 | AV63: 299401 | AW63: 299402 | AX63: 300365 | AY63: 300366
B64: [299404]Майка для мальчика ПНМ009824 | C64: ластик / хлопок 70% + полиэстер 30% | D64: серый / - / Якорь / - / серый / - | E64: 130-140 | F64: =IF(MIN(Y64:AO64)=MAX(Y64:AO64),ROUND(MIN(Y64:AO64)*(1-$F$9),0),ROUND(MIN(Y64:AO64)*(1-$F$9),0)&"-"&ROUND(MAX(Y64:AO64)*(1-$F$9),0)) -> 114-123 | X64: =(G64*Y64+H64*Z64+I64*AA64+J64*AB64+K64*AC64+L64*AD64+M64*AE64+N64*AF64+O64*AG64+P64*AH64+Q64*AI64+R64*AJ64+S64*AK64+T64*AL64+U64*AM64+V64*AN64+W64*AO64)*(1-$F$9) -> 0 | AC64: 130 | AD64: 130 | AE64: 130 | AF64: 140 | AG64: 140 | AH64: 140 | AT64: 299406 | AU64: 299407 | AV64: 299408 | AW64: 299409 | AX64: 300381 | AY64: 300382
B65: [299411]Трусы для мальчика ПНП700021м | C65: ластик / хлопок 70% + полиэстер 30% | D65: - / серый+полоска голубой / - / - / серый / - | E65: 110 | F65: =IF(MIN(Y65:AO65)=MAX(Y65:AO65),ROUND(MIN(Y65:AO65)*(1-$F$9),0),ROUND(MIN(Y65:AO65)*(1-$F$9),0)&"-"&ROUND(MAX(Y65:AO65)*(1-$F$9),0)) -> 97 | X65: =(G65*Y65+H65*Z65+I65*AA65+J65*AB65+K65*AC65+L65*AD65+M65*AE65+N65*AF65+O65*AG65+P65*AH65+Q65*AI65+R65*AJ65+S65*AK65+T65*AL65+U65*AM65+V65*AN65+W65*AO65)*(1-$F$9) -> 0 | AC65: 110 | AD65: 110 | AE65: 110 | AF65: 110 | AG65: 110 | AH65: 110 | AT65: 299412 | AU65: 299413 | AV65: 299414 | AW65: 299415 | AX65: 300367 | AY65: 300368
B66: [299417]Трусы для мальчика ПНП700824 | C66: ластик / хлопок 70% + полиэстер 30% | D66: серый / - / - / - / серый / - | E66: 110 | F66: =IF(MIN(Y66:AO66)=MAX(Y66:AO66),ROUND(MIN(Y66:AO66)*(1-$F$9),0),ROUND(MIN(Y66:AO66)*(1-$F$9),0)&"-"&ROUND(MAX(Y66:AO66)*(1-$F$9),0)) -> 97 | X66: =(G66*Y66+H66*Z66+I66*AA66+J66*AB66+K66*AC66+L66*AD66+M66*AE66+N66*AF66+O66*AG66+P66*AH66+Q66*AI66+R66*AJ66+S66*AK66+T66*AL66+U66*AM66+V66*AN66+W66*AO66)*(1-$F$9) -> 0 | AC66: 110 | AD66: 110 | AE66: 110 | AF66: 110 | AG66: 110 | AH66: 110 | AT66: 299418 | AU66: 299419 | AV66: 299420 | AW66: 299421 | AX66: 300383 | AY66: 300384
B67: [299430]Трусы для мальчика ПНШ720824 | C67: ластик / хлопок 70% + полиэстер 30% | D67: серый / - / - / - / - / - | E67: 130 | F67: =IF(MIN(Y67:AO67)=MAX(Y67:AO67),ROUND(MIN(Y67:AO67)*(1-$F$9),0),ROUND(MIN(Y67:AO67)*(1-$F$9),0)&"-"&ROUND(MAX(Y67:AO67)*(1-$F$9),0)) -> 114 | X67: =(G67*Y67+H67*Z67+I67*AA67+J67*AB67+K67*AC67+L67*AD67+M67*AE67+N67*AF67+O67*AG67+P67*AH67+Q67*AI67+R67*AJ67+S67*AK67+T67*AL67+U67*AM67+V67*AN67+W67*AO67)*(1-$F$9) -> 0 | AC67: 130 | AD67: 130 | AE67: 130 | AF67: 130 | AG67: 130 | AH67: 130 | AT67: 299432 | AU67: 299433 | AV67: 299434 | AW67: 299435 | AX67: 300385 | AY67: 300386
B68: [299423]Трусы для мальчика ПНШ721021м | C68: ластик / хлопок 70% + полиэстер 30% | D68: - / серый+полоска голубой / - / - / - / - | E68: 145 | F68: =IF(MIN(Y68:AO68)=MAX(Y68:AO68),ROUND(MIN(Y68:AO68)*(1-$F$9),0),ROUND(MIN(Y68:AO68)*(1-$F$9),0)&"-"&ROUND(MAX(Y68:AO68)*(1-$F$9),0)) -> 128 | X68: =(G68*Y68+H68*Z68+I68*AA68+J68*AB68+K68*AC68+L68*AD68+M68*AE68+N68*AF68+O68*AG68+P68*AH68+Q68*AI68+R68*AJ68+S68*AK68+T68*AL68+U68*AM68+V68*AN68+W68*AO68)*(1-$F$9) -> 0 | AC68: 145 | AD68: 145 | AE68: 145 | AF68: 145 | AG68: 145 | AH68: 145 | AT68: 299425 | AU68: 299426 | AV68: 299427 | AW68: 299428 | AX68: 300369 | AY68: 300370
B69: Коллекция "ВДВ"
B70: [492826]Гарнитур для мальчика ПНГ173021м | C70: ластик / хлопок 70% + полиэстер 30% | D70: - / светло-серый+полоска серо-голубая 10 / ВДВ вертолет / светло-серый+полоска серо-голубая 10 / голубой / - | E70: 290-305 | F70: =IF(MIN(Y70:AO70)=MAX(Y70:AO70),ROUND(MIN(Y70:AO70)*(1-$F$9),0),ROUND(MIN(Y70:AO70)*(1-$F$9),0)&"-"&ROUND(MAX(Y70:AO70)*(1-$F$9),0)) -> 255-268 | X70: =(G70*Y70+H70*Z70+I70*AA70+J70*AB70+K70*AC70+L70*AD70+M70*AE70+N70*AF70+O70*AG70+P70*AH70+Q70*AI70+R70*AJ70+S70*AK70+T70*AL70+U70*AM70+V70*AN70+W70*AO70)*(1-$F$9) -> 0 | AC70: 290 | AD70: 290 | AE70: 290 | AF70: 305 | AG70: 305 | AH70: 305 | AT70: 367940 | AU70: 367941 | AV70: 367942 | AW70: 367943 | AX70: 367944 | AY70: 367945
B71: [492827]Гарнитур для мальчика ПНГ173021м | C71: ластик / хлопок 70% + полиэстер 30% | D71: - / светло-серый+полоска серо-голубая 10 / ВДВ парашют / светло-серый+полоска серо-голубая 10 / голубой / - | E71: 290-305 | F71: =IF(MIN(Y71:AO71)=MAX(Y71:AO71),ROUND(MIN(Y71:AO71)*(1-$F$9),0),ROUND(MIN(Y71:AO71)*(1-$F$9),0)&"-"&ROUND(MAX(Y71:AO71)*(1-$F$9),0)) -> 255-268 | X71: =(G71*Y71+H71*Z71+I71*AA71+J71*AB71+K71*AC71+L71*AD71+M71*AE71+N71*AF71+O71*AG71+P71*AH71+Q71*AI71+R71*AJ71+S71*AK71+T71*AL71+U71*AM71+V71*AN71+W71*AO71)*(1-$F$9) -> 0 | AC71: 290 | AD71: 290 | AE71: 290 | AF71: 305 | AG71: 305 | AH71: 305 | AT71: 367946 | AU71: 367947 | AV71: 367948 | AW71: 367949 | AX71: 367950 | AY71: 367951
B72: [492955]Гарнитур для мальчика ПНГ474021м | C72: ластик / хлопок 70% + полиэстер 30% | D72: - / светло-серый+полоска серо-голубая 10 / ВДВ флаг / светло-серый+полоска серо-голубая 10 / - / - | E72: 310-320 | F72: =IF(MIN(Y72:AO72)=MAX(Y72:AO72),ROUND(MIN(Y72:AO72)*(1-$F$9),0),ROUND(MIN(Y72:AO72)*(1-$F$9),0)&"-"&ROUND(MAX(Y72:AO72)*(1-$F$9),0)) -> 273-282 | X72: =(G72*Y72+H72*Z72+I72*AA72+J72*AB72+K72*AC72+L72*AD72+M72*AE72+N72*AF72+O72*AG72+P72*AH72+Q72*AI72+R72*AJ72+S72*AK72+T72*AL72+U72*AM72+V72*AN72+W72*AO72)*(1-$F$9) -> 0 | AC72: 310 | AD72: 310 | AE72: 310 | AF72: 320 | AG72: 320 | AH72: 320 | AT72: 368654 | AU72: 368655 | AV72: 368656 | AW72: 368657 | AX72: 368658 | AY72: 368659
B73: [492828]Гарнитур для мальчика ПНГ474824 | C73: ластик / хлопок 70% + полиэстер 30% | D73: - / светло-серый+полоска серо-голубая 10 / ВДВ вертолет / светло-серый+полоска серо-голубая 10 / голубой / - | E73: 310-320 | F73: =IF(MIN(Y73:AO73)=MAX(Y73:AO73),ROUND(MIN(Y73:AO73)*(1-$F$9),0),ROUND(MIN(Y73:AO73)*(1-$F$9),0)&"-"&ROUND(MAX(Y73:AO73)*(1-$F$9),0)) -> 273-282 | X73: =(G73*Y73+H73*Z73+I73*AA73+J73*AB73+K73*AC73+L73*AD73+M73*AE73+N73*AF73+O73*AG73+P73*AH73+Q73*AI73+R73*AJ73+S73*AK73+T73*AL73+U73*AM73+V73*AN73+W73*AO73)*(1-$F$9) -> 0 | AC73: 310 | AD73: 310 | AE73: 310 | AF73: 320 | AG73: 320 | AH73: 320 | AT73: 367952 | AU73: 367953 | AV73: 367954 | AW73: 367955 | AX73: 367956 | AY73: 367957
B74: [492829]Гарнитур для мальчика ПНГ474824 | C74: ластик / хлопок 70% + полиэстер 30% | D74: - / светло-серый+полоска серо-голубая 10 / ВДВ парашют / светло-серый+полоска серо-голубая 10 / голубой / - | E74: 310-320 | F74: =IF(MIN(Y74:AO74)=MAX(Y74:AO74),ROUND(MIN(Y74:AO74)*(1-$F$9),0),ROUND(MIN(Y74:AO74)*(1-$F$9),0)&"-"&ROUND(MAX(Y74:AO74)*(1-$F$9),0)) -> 273-282 | X74: =(G74*Y74+H74*Z74+I74*AA74+J74*AB74+K74*AC74+L74*AD74+M74*AE74+N74*AF74+O74*AG74+P74*AH74+Q74*AI74+R74*AJ74+S74*AK74+T74*AL74+U74*AM74+V74*AN74+W74*AO74)*(1-$F$9) -> 0 | AC74: 310 | AD74: 310 | AE74: 310 | AF74: 320 | AG74: 320 | AH74: 320 | AT74: 367958 | AU74: 367959 | AV74: 367960 | AW74: 367961 | AX74: 367962 | AY74: 367963
B75: [492954]Майка для мальчика ПНМ009021м | C75: ластик / хлопок 70% + полиэстер 30% | D75: - / полоска серо-голубая 10 / ВДВ флаг / - / - / - | E75: 180-190 | F75: =IF(MIN(Y75:AO75)=MAX(Y75:AO75),ROUND(MIN(Y75:AO75)*(1-$F$9),0),ROUND(MIN(Y75:AO75)*(1-$F$9),0)&"-"&ROUND(MAX(Y75:AO75)*(1-$F$9),0)) -> 158-167 | X75: =(G75*Y75+H75*Z75+I75*AA75+J75*AB75+K75*AC75+L75*AD75+M75*AE75+N75*AF75+O75*AG75+P75*AH75+Q75*AI75+R75*AJ75+S75*AK75+T75*AL75+U75*AM75+V75*AN75+W75*AO75)*(1-$F$9) -> 0 | AC75: 180 | AD75: 180 | AE75: 180 | AF75: 190 | AG75: 190 | AH75: 190 | AT75: 368648 | AU75: 368649 | AV75: 368650 | AW75: 368651 | AX75: 368652 | AY75: 368653
B76: [492821]Майка для мальчика ПНМ009824 | C76: ластик / хлопок 70% + полиэстер 30% | D76: светло-серый / - / ВДВ вертолет / - / голубой / - | E76: 180-190 | F76: =IF(MIN(Y76:AO76)=MAX(Y76:AO76),ROUND(MIN(Y76:AO76)*(1-$F$9),0),ROUND(MIN(Y76:AO76)*(1-$F$9),0)&"-"&ROUND(MAX(Y76:AO76)*(1-$F$9),0)) -> 158-167 | X76: =(G76*Y76+H76*Z76+I76*AA76+J76*AB76+K76*AC76+L76*AD76+M76*AE76+N76*AF76+O76*AG76+P76*AH76+Q76*AI76+R76*AJ76+S76*AK76+T76*AL76+U76*AM76+V76*AN76+W76*AO76)*(1-$F$9) -> 0 | AC76: 180 | AD76: 180 | AE76: 180 | AF76: 190 | AG76: 190 | AH76: 190 | AT76: 367910 | AU76: 367911 | AV76: 367912 | AW76: 367913 | AX76: 367914 | AY76: 367915
B77: [492822]Майка для мальчика ПНМ009824 | C77: ластик / хлопок 70% + полиэстер 30% | D77: светло-серый / - / ВДВ парашют / - / голубой / - | E77: 180-190 | F77: =IF(MIN(Y77:AO77)=MAX(Y77:AO77),ROUND(MIN(Y77:AO77)*(1-$F$9),0),ROUND(MIN(Y77:AO77)*(1-$F$9),0)&"-"&ROUND(MAX(Y77:AO77)*(1-$F$9),0)) -> 158-167 | X77: =(G77*Y77+H77*Z77+I77*AA77+J77*AB77+K77*AC77+L77*AD77+M77*AE77+N77*AF77+O77*AG77+P77*AH77+Q77*AI77+R77*AJ77+S77*AK77+T77*AL77+U77*AM77+V77*AN77+W77*AO77)*(1-$F$9) -> 0 | AC77: 180 | AD77: 180 | AE77: 180 | AF77: 190 | AG77: 190 | AH77: 190 | AT77: 367916 | AU77: 367917 | AV77: 367918 | AW77: 367919 | AX77: 367920 | AY77: 367921
B78: [492824]Трусы для мальчика ПНП700021м | C78: ластик / хлопок 70% + полиэстер 30% | D78: - / светло-серый+полоска серо-голубая 10 / - / - / голубой / - | E78: 110-115 | F78: =IF(MIN(Y78:AO78)=MAX(Y78:AO78),ROUND(MIN(Y78:AO78)*(1-$F$9),0),ROUND(MIN(Y78:AO78)*(1-$F$9),0)&"-"&ROUND(MAX(Y78:AO78)*(1-$F$9),0)) -> 97-101 | X78: =(G78*Y78+H78*Z78+I78*AA78+J78*AB78+K78*AC78+L78*AD78+M78*AE78+N78*AF78+O78*AG78+P78*AH78+Q78*AI78+R78*AJ78+S78*AK78+T78*AL78+U78*AM78+V78*AN78+W78*AO78)*(1-$F$9) -> 0 | AC78: 110 | AD78: 110 | AE78: 110 | AF78: 115 | AG78: 115 | AH78: 115 | AT78: 367928 | AU78: 367929 | AV78: 367930 | AW78: 367931 | AX78: 367932 | AY78: 367933
B79: [492825]Трусы для мальчика ПНШ720824 | C79: ластик / хлопок 70% + полиэстер 30% | D79: - / светло-серый+полоска серо-голубая 10 / - / - / - / - | E79: 130 | F79: =IF(MIN(Y79:AO79)=MAX(Y79:AO79),ROUND(MIN(Y79:AO79)*(1-$F$9),0),ROUND(MIN(Y79:AO79)*(1-$F$9),0)&"-"&ROUND(MAX(Y79:AO79)*(1-$F$9),0)) -> 114 | X79: =(G79*Y79+H79*Z79+I79*AA79+J79*AB79+K79*AC79+L79*AD79+M79*AE79+N79*AF79+O79*AG79+P79*AH79+Q79*AI79+R79*AJ79+S79*AK79+T79*AL79+U79*AM79+V79*AN79+W79*AO79)*(1-$F$9) -> 0 | AC79: 130 | AD79: 130 | AE79: 130 | AF79: 130 | AG79: 130 | AH79: 130 | AT79: 367934 | AU79: 367935 | AV79: 367936 | AW79: 367937 | AX79: 367938 | AY79: 367939
B80: Коллекция "Велотрек"
B81: [486876]Гарнитур для мальчика ПНГ173001 | C81: кулир / хлопок 100%, хлопок 70% + полиэстер 30% | D81: белый+синий / - / Велосипед / - / синий / - | E81: 245 | F81: =IF(MIN(Y81:AO81)=MAX(Y81:AO81),ROUND(MIN(Y81:AO81)*(1-$F$9),0),ROUND(MIN(Y81:AO81)*(1-$F$9),0)&"-"&ROUND(MAX(Y81:AO81)*(1-$F$9),0)) -> 216 | X81: =(G81*Y81+H81*Z81+I81*AA81+J81*AB81+K81*AC81+L81*AD81+M81*AE81+N81*AF81+O81*AG81+P81*AH81+Q81*AI81+R81*AJ81+S81*AK81+T81*AL81+U81*AM81+V81*AN81+W81*AO81)*(1-$F$9) -> 0 | AE81: 245 | AF81: 245 | AG81: 245 | AH81: 245 | AI81: 245 | AJ81: 245 | AK81: 245 | AV81: 338835 | AW81: 338836 | AX81: 338837 | AY81: 338838 | AZ81: 338839 | BA81: 338840 | BB81: 338841
B82: [486877]Гарнитур для мальчика ПНГ474001 | C82: кулир / хлопок 100%, хлопок 70% + полиэстер 30% | D82: белый+синий / - / Велосипед / - / синий / - | E82: 265 | F82: =IF(MIN(Y82:AO82)=MAX(Y82:AO82),ROUND(MIN(Y82:AO82)*(1-$F$9),0),ROUND(MIN(Y82:AO82)*(1-$F$9),0)&"-"&ROUND(MAX(Y82:AO82)*(1-$F$9),0)) -> 233 | X82: =(G82*Y82+H82*Z82+I82*AA82+J82*AB82+K82*AC82+L82*AD82+M82*AE82+N82*AF82+O82*AG82+P82*AH82+Q82*AI82+R82*AJ82+S82*AK82+T82*AL82+U82*AM82+V82*AN82+W82*AO82)*(1-$F$9) -> 0 | AE82: 265 | AF82: 265 | AG82: 265 | AH82: 265 | AI82: 265 | AJ82: 265 | AK82: 265 | AV82: 338842 | AW82: 338843 | AX82: 338844 | AY82: 338845 | AZ82: 338846 | BA82: 338847 | BB82: 338848
B83: [486880]Майка для мальчика ПНМ009001 | C83: кулир / хлопок 100% | D83: белый / - / Велосипед / - / синий / - | E83: 135 | F83: =IF(MIN(Y83:AO83)=MAX(Y83:AO83),ROUND(MIN(Y83:AO83)*(1-$F$9),0),ROUND(MIN(Y83:AO83)*(1-$F$9),0)&"-"&ROUND(MAX(Y83:AO83)*(1-$F$9),0)) -> 119 | X83: =(G83*Y83+H83*Z83+I83*AA83+J83*AB83+K83*AC83+L83*AD83+M83*AE83+N83*AF83+O83*AG83+P83*AH83+Q83*AI83+R83*AJ83+S83*AK83+T83*AL83+U83*AM83+V83*AN83+W83*AO83)*(1-$F$9) -> 0 | AE83: 135 | AF83: 135 | AG83: 135 | AH83: 135 | AI83: 135 | AJ83: 135 | AK83: 135 | AV83: 338863 | AW83: 338864 | AX83: 338865 | AY83: 338866 | AZ83: 338867 | BA83: 338868 | BB83: 338869
B84: [330794]Трусы для мальчика ПНП700002 | C84: кулир / хлопок 70% + полиэстер 30% | D84: синий / - / - / - / синий / - | E84: 110 | F84: =IF(MIN(Y84:AO84)=MAX(Y84:AO84),ROUND(MIN(Y84:AO84)*(1-$F$9),0),ROUND(MIN(Y84:AO84)*(1-$F$9),0)&"-"&ROUND(MAX(Y84:AO84)*(1-$F$9),0)) -> 97 | X84: =(G84*Y84+H84*Z84+I84*AA84+J84*AB84+K84*AC84+L84*AD84+M84*AE84+N84*AF84+O84*AG84+P84*AH84+Q84*AI84+R84*AJ84+S84*AK84+T84*AL84+U84*AM84+V84*AN84+W84*AO84)*(1-$F$9) -> 0 | AE84: 110 | AF84: 110 | AG84: 110 | AH84: 110 | AI84: 110 | AJ84: 110 | AK84: 110 | AV84: 330793 | AW84: 330795 | AX84: 330796 | AY84: 330797 | AZ84: 330798 | BA84: 330799 | BB84: 330800
B85: [330802]Трусы для мальчика ПНШ720002 | C85: кулир / хлопок 70% + полиэстер 30% | D85: синий / - / - / - / - / - | E85: 130 | F85: =IF(MIN(Y85:AO85)=MAX(Y85:AO85),ROUND(MIN(Y85:AO85)*(1-$F$9),0),ROUND(MIN(Y85:AO85)*(1-$F$9),0)&"-"&ROUND(MAX(Y85:AO85)*(1-$F$9),0)) -> 114 | X85: =(G85*Y85+H85*Z85+I85*AA85+J85*AB85+K85*AC85+L85*AD85+M85*AE85+N85*AF85+O85*AG85+P85*AH85+Q85*AI85+R85*AJ85+S85*AK85+T85*AL85+U85*AM85+V85*AN85+W85*AO85)*(1-$F$9) -> 0 | AE85: 130 | AF85: 130 | AG85: 130 | AH85: 130 | AI85: 130 | AJ85: 130 | AK85: 130 | AV85: 330801 | AW85: 330803 | AX85: 330804 | AY85: 330805 | AZ85: 330806 | BA85: 330807 | BB85: 330808
B86: Коллекция "Вертихвост"
B87: [488517]Гарнитур для девочки ДНГ684001н | C87: кулир / хлопок 100% | D87: - / белый+полоска красный / Собака в рамке / полоска красный / белый / - | E87: 215 | F87: =IF(MIN(Y87:AO87)=MAX(Y87:AO87),ROUND(MIN(Y87:AO87)*(1-$F$9),0),ROUND(MIN(Y87:AO87)*(1-$F$9),0)&"-"&ROUND(MAX(Y87:AO87)*(1-$F$9),0)) -> 189 | X87: =(G87*Y87+H87*Z87+I87*AA87+J87*AB87+K87*AC87+L87*AD87+M87*AE87+N87*AF87+O87*AG87+P87*AH87+Q87*AI87+R87*AJ87+S87*AK87+T87*AL87+U87*AM87+V87*AN87+W87*AO87)*(1-$F$9) -> 0 | AB87: 215 | AC87: 215 | AD87: 215 | AE87: 215 | AF87: 215 | AS87: 347204 | AT87: 347205 | AU87: 347206 | AV87: 347207 | AW87: 347208
B88: [488518]Майка для девочки ДНМ120001 | C88: кулир / хлопок 100% | D88: белый / - / Кошка в рамке / - / клетка красный / - | E88: 130 | F88: =IF(MIN(Y88:AO88)=MAX(Y88:AO88),ROUND(MIN(Y88:AO88)*(1-$F$9),0),ROUND(MIN(Y88:AO88)*(1-$F$9),0)&"-"&ROUND(MAX(Y88:AO88)*(1-$F$9),0)) -> 114 | X88: =(G88*Y88+H88*Z88+I88*AA88+J88*AB88+K88*AC88+L88*AD88+M88*AE88+N88*AF88+O88*AG88+P88*AH88+Q88*AI88+R88*AJ88+S88*AK88+T88*AL88+U88*AM88+V88*AN88+W88*AO88)*(1-$F$9) -> 0 | AB88: 130 | AC88: 130 | AD88: 130 | AE88: 130 | AF88: 130 | AS88: 347209 | AT88: 347210 | AU88: 347211 | AV88: 347212 | AW88: 347213
B89: [488519]Майка для девочки ДНМ120001 | C89: кулир / хлопок 100% | D89: белый / - / Собака в рамке / - / клетка красный / - | E89: 130 | F89: =IF(MIN(Y89:AO89)=MAX(Y89:AO89),ROUND(MIN(Y89:AO89)*(1-$F$9),0),ROUND(MIN(Y89:AO89)*(1-$F$9),0)&"-"&ROUND(MAX(Y89:AO89)*(1-$F$9),0)) -> 114 | X89: =(G89*Y89+H89*Z89+I89*AA89+J89*AB89+K89*AC89+L89*AD89+M89*AE89+N89*AF89+O89*AG89+P89*AH89+Q89*AI89+R89*AJ89+S89*AK89+T89*AL89+U89*AM89+V89*AN89+W89*AO89)*(1-$F$9) -> 0 | AB89: 130 | AC89: 130 | AD89: 130 | AE89: 130 | AF89: 130 | AS89: 347214 | AT89: 347215 | AU89: 347216 | AV89: 347217 | AW89: 347218
B90: [488521]Майка для девочки ДНМ154001 | C90: кулир / хлопок 100% | D90: белый / - / Собака в рамке / - / клетка красный / - | E90: 130 | F90: =IF(MIN(Y90:AO90)=MAX(Y90:AO90),ROUND(MIN(Y90:AO90)*(1-$F$9),0),ROUND(MIN(Y90:AO90)*(1-$F$9),0)&"-"&ROUND(MAX(Y90:AO90)*(1-$F$9),0)) -> 114 | X90: =(G90*Y90+H90*Z90+I90*AA90+J90*AB90+K90*AC90+L90*AD90+M90*AE90+N90*AF90+O90*AG90+P90*AH90+Q90*AI90+R90*AJ90+S90*AK90+T90*AL90+U90*AM90+V90*AN90+W90*AO90)*(1-$F$9) -> 0 | AB90: 130 | AC90: 130 | AD90: 130 | AE90: 130 | AF90: 130 | AS90: 347224 | AT90: 347225 | AU90: 347226 | AV90: 347227 | AW90: 347228
B91: [488523]Майка для девочки ДНМ665001 | C91: кулир / хлопок 100% | D91: белый / - / Кошка в рамке / - / белый / - | E91: 130 | F91: =IF(MIN(Y91:AO91)=MAX(Y91:AO91),ROUND(MIN(Y91:AO91)*(1-$F$9),0),ROUND(MIN(Y91:AO91)*(1-$F$9),0)&"-"&ROUND(MAX(Y91:AO91)*(1-$F$9),0)) -> 114 | X91: =(G91*Y91+H91*Z91+I91*AA91+J91*AB91+K91*AC91+L91*AD91+M91*AE91+N91*AF91+O91*AG91+P91*AH91+Q91*AI91+R91*AJ91+S91*AK91+T91*AL91+U91*AM91+V91*AN91+W91*AO91)*(1-$F$9) -> 0 | AB91: 130 | AC91: 130 | AD91: 130 | AE91: 130 | AF91: 130 | AS91: 347234 | AT91: 347235 | AU91: 347236 | AV91: 347237 | AW91: 347238
B92: [488522]Майка для девочки ДНМ665001 | C92: кулир / хлопок 100% | D92: белый / - / Собака в рамке / - / белый / - | E92: 130 | F92: =IF(MIN(Y92:AO92)=MAX(Y92:AO92),ROUND(MIN(Y92:AO92)*(1-$F$9),0),ROUND(MIN(Y92:AO92)*(1-$F$9),0)&"-"&ROUND(MAX(Y92:AO92)*(1-$F$9),0)) -> 114 | X92: =(G92*Y92+H92*Z92+I92*AA92+J92*AB92+K92*AC92+L92*AD92+M92*AE92+N92*AF92+O92*AG92+P92*AH92+Q92*AI92+R92*AJ92+S92*AK92+T92*AL92+U92*AM92+V92*AN92+W92*AO92)*(1-$F$9) -> 0 | AB92: 130 | AC92: 130 | AD92: 130 | AE92: 130 | AF92: 130 | AS92: 347229 | AT92: 347230 | AU92: 347231 | AV92: 347232 | AW92: 347233
B93: [488524]Майка для девочки ДНМ973001 | C93: кулир / хлопок 100% | D93: белый / - / Кошка в рамке / - / белый / - | E93: 130 | F93: =IF(MIN(Y93:AO93)=MAX(Y93:AO93),ROUND(MIN(Y93:AO93)*(1-$F$9),0),ROUND(MIN(Y93:AO93)*(1-$F$9),0)&"-"&ROUND(MAX(Y93:AO93)*(1-$F$9),0)) -> 114 | X93: =(G93*Y93+H93*Z93+I93*AA93+J93*AB93+K93*AC93+L93*AD93+M93*AE93+N93*AF93+O93*AG93+P93*AH93+Q93*AI93+R93*AJ93+S93*AK93+T93*AL93+U93*AM93+V93*AN93+W93*AO93)*(1-$F$9) -> 0 | AB93: 130 | AC93: 130 | AD93: 130 | AE93: 130 | AF93: 130 | AS93: 347239 | AT93: 347240 | AU93: 347241 | AV93: 347242 | AW93: 347243
B94: [488525]Трусы для девочки ДНТ034001 | C94: кулир / хлопок 100% | D94: белый / - / Звездочка и сердечко / - / белый / - | E94: 85 | F94: =IF(MIN(Y94:AO94)=MAX(Y94:AO94),ROUND(MIN(Y94:AO94)*(1-$F$9),0),ROUND(MIN(Y94:AO94)*(1-$F$9),0)&"-"&ROUND(MAX(Y94:AO94)*(1-$F$9),0)) -> 75 | X94: =(G94*Y94+H94*Z94+I94*AA94+J94*AB94+K94*AC94+L94*AD94+M94*AE94+N94*AF94+O94*AG94+P94*AH94+Q94*AI94+R94*AJ94+S94*AK94+T94*AL94+U94*AM94+V94*AN94+W94*AO94)*(1-$F$9) -> 0 | AB94: 85 | AC94: 85 | AD94: 85 | AE94: 85 | AF94: 85 | AS94: 347244 | AT94: 347245 | AU94: 347246 | AV94: 347247 | AW94: 347248
B95: [488526]Трусы для девочки ДНТ034001н | C95: кулир / хлопок 100% | D95: - / клетка красный / - / - / белый / - | E95: 85 | F95: =IF(MIN(Y95:AO95)=MAX(Y95:AO95),ROUND(MIN(Y95:AO95)*(1-$F$9),0),ROUND(MIN(Y95:AO95)*(1-$F$9),0)&"-"&ROUND(MAX(Y95:AO95)*(1-$F$9),0)) -> 75 | X95: =(G95*Y95+H95*Z95+I95*AA95+J95*AB95+K95*AC95+L95*AD95+M95*AE95+N95*AF95+O95*AG95+P95*AH95+Q95*AI95+R95*AJ95+S95*AK95+T95*AL95+U95*AM95+V95*AN95+W95*AO95)*(1-$F$9) -> 0 | AB95: 85 | AC95: 85 | AD95: 85 | AE95: 85 | AF95: 85 | AS95: 347249 | AT95: 347250 | AU95: 347251 | AV95: 347252 | AW95: 347253
B96: [488527]Трусы для девочки ДНТ034001н | C96: кулир / хлопок 100% | D96: - / полоска красный / - / - / белый / - | E96: 85 | F96: =IF(MIN(Y96:AO96)=MAX(Y96:AO96),ROUND(MIN(Y96:AO96)*(1-$F$9),0),ROUND(MIN(Y96:AO96)*(1-$F$9),0)&"-"&ROUND(MAX(Y96:AO96)*(1-$F$9),0)) -> 75 | X96: =(G96*Y96+H96*Z96+I96*AA96+J96*AB96+K96*AC96+L96*AD96+M96*AE96+N96*AF96+O96*AG96+P96*AH96+Q96*AI96+R96*AJ96+S96*AK96+T96*AL96+U96*AM96+V96*AN96+W96*AO96)*(1-$F$9) -> 0 | AB96: 85 | AC96: 85 | AD96: 85 | AE96: 85 | AF96: 85 | AS96: 347254 | AT96: 347255 | AU96: 347256 | AV96: 347257 | AW96: 347258
B97: Коллекция "Веселая компания"
B98: [486365]Гарнитур для девочки ДНГ553001н | C98: кулир / хлопок 100% | D98: - / белый+мелкоцвет бирюза / Вверх / - / - / - | E98: 205 | F98: =IF(MIN(Y98:AO98)=MAX(Y98:AO98),ROUND(MIN(Y98:AO98)*(1-$F$9),0),ROUND(MIN(Y98:AO98)*(1-$F$9),0)&"-"&ROUND(MAX(Y98:AO98)*(1-$F$9),0)) -> 180 | X98: =(G98*Y98+H98*Z98+I98*AA98+J98*AB98+K98*AC98+L98*AD98+M98*AE98+N98*AF98+O98*AG98+P98*AH98+Q98*AI98+R98*AJ98+S98*AK98+T98*AL98+U98*AM98+V98*AN98+W98*AO98)*(1-$F$9) -> 0 | AA98: 205 | AB98: 205 | AC98: 205 | AD98: 205 | AE98: 205 | AF98: 205 | AR98: 336535 | AS98: 336536 | AT98: 336537 | AU98: 336538 | AV98: 336539 | AW98: 336540
B99: [486366]Гарнитур для девочки ДНГ553001н | C99: кулир / хлопок 100% | D99: - / белый+мелкоцвет малина / Шесть мордочек / - / - / - | E99: 205 | F99: =IF(MIN(Y99:AO99)=MAX(Y99:AO99),ROUND(MIN(Y99:AO99)*(1-$F$9),0),ROUND(MIN(Y99:AO99)*(1-$F$9),0)&"-"&ROUND(MAX(Y99:AO99)*(1-$F$9),0)) -> 180 | X99: =(G99*Y99+H99*Z99+I99*AA99+J99*AB99+K99*AC99+L99*AD99+M99*AE99+N99*AF99+O99*AG99+P99*AH99+Q99*AI99+R99*AJ99+S99*AK99+T99*AL99+U99*AM99+V99*AN99+W99*AO99)*(1-$F$9) -> 0 | AA99: 205 | AB99: 205 | AC99: 205 | AD99: 205 | AE99: 205 | AF99: 205 | AR99: 336541 | AS99: 336542 | AT99: 336543 | AU99: 336544 | AV99: 336545 | AW99: 336546
B100: [486367]Гарнитур для девочки ДНГ553001н | C100: кулир / хлопок 100% | D100: - / мелкоцвет бирюза / - / - / - / - | E100: 185 | F100: =IF(MIN(Y100:AO100)=MAX(Y100:AO100),ROUND(MIN(Y100:AO100)*(1-$F$9),0),ROUND(MIN(Y100:AO100)*(1-$F$9),0)&"-"&ROUND(MAX(Y100:AO100)*(1-$F$9),0)) -> 163 | X100: =(G100*Y100+H100*Z100+I100*AA100+J100*AB100+K100*AC100+L100*AD100+M100*AE100+N100*AF100+O100*AG100+P100*AH100+Q100*AI100+R100*AJ100+S100*AK100+T100*AL100+U100*AM100+V100*AN100+W100*AO100)*(1-$F$9) -> 0 | AA100: 185 | AB100: 185 | AC100: 185 | AD100: 185 | AE100: 185 | AF100: 185 | AR100: 336547 | AS100: 336548 | AT100: 336549 | AU100: 336550 | AV100: 336551 | AW100: 336552
B101: [486368]Гарнитур для девочки ДНГ553001н | C101: кулир / хлопок 100% | D101: - / мелкоцвет малина / - / - / - / - | E101: 185 | F101: =IF(MIN(Y101:AO101)=MAX(Y101:AO101),ROUND(MIN(Y101:AO101)*(1-$F$9),0),ROUND(MIN(Y101:AO101)*(1-$F$9),0)&"-"&ROUND(MAX(Y101:AO101)*(1-$F$9),0)) -> 163 | X101: =(G101*Y101+H101*Z101+I101*AA101+J101*AB101+K101*AC101+L101*AD101+M101*AE101+N101*AF101+O101*AG101+P101*AH101+Q101*AI101+R101*AJ101+S101*AK101+T101*AL101+U101*AM101+V101*AN101+W101*AO101)*(1-$F$9) -> 0 | AA101: 185 | AB101: 185 | AC101: 185 | AD101: 185 | AE101: 185 | AF101: 185 | AR101: 336553 | AS101: 336554 | AT101: 336555 | AU101: 336556 | AV101: 336557 | AW101: 336558
B102: [486369]Гарнитур для девочки ДНГ684001н | C102: кулир / хлопок 100% | D102: - / белый+мелкоцвет бирюза / Мишка и письмо / - / - / - | E102: 210 | F102: =IF(MIN(Y102:AO102)=MAX(Y102:AO102),ROUND(MIN(Y102:AO102)*(1-$F$9),0),ROUND(MIN(Y102:AO102)*(1-$F$9),0)&"-"&ROUND(MAX(Y102:AO102)*(1-$F$9),0)) -> 185 | X102: =(G102*Y102+H102*Z102+I102*AA102+J102*AB102+K102*AC102+L102*AD102+M102*AE102+N102*AF102+O102*AG102+P102*AH102+Q102*AI102+R102*AJ102+S102*AK102+T102*AL102+U102*AM102+V102*AN102+W102*AO102)*(1-$F$9) -> 0 | AA102: 210 | AB102: 210 | AC102: 210 | AD102: 210 | AE102: 210 | AF102: 210 | AR102: 336559 | AS102: 336560 | AT102: 336561 | AU102: 336562 | AV102: 336563 | AW102: 336564
B103: [486370]Гарнитур для девочки ДНГ684001н | C103: кулир / хлопок 100% | D103: - / белый+мелкоцвет малина / Шесть мордочек / - / - / - | E103: 210 | F103: =IF(MIN(Y103:AO103)=MAX(Y103:AO103),ROUND(MIN(Y103:AO103)*(1-$F$9),0),ROUND(MIN(Y103:AO103)*(1-$F$9),0)&"-"&ROUND(MAX(Y103:AO103)*(1-$F$9),0)) -> 185 | X103: =(G103*Y103+H103*Z103+I103*AA103+J103*AB103+K103*AC103+L103*AD103+M103*AE103+N103*AF103+O103*AG103+P103*AH103+Q103*AI103+R103*AJ103+S103*AK103+T103*AL103+U103*AM103+V103*AN103+W103*AO103)*(1-$F$9) -> 0 | AA103: 210 | AB103: 210 | AC103: 210 | AD103: 210 | AE103: 210 | AF103: 210 | AR103: 336565 | AS103: 336566 | AT103: 336567 | AU103: 336568 | AV103: 336569 | AW103: 336570
B104: [486371]Гарнитур для девочки ДНГ684001н | C104: кулир / хлопок 100% | D104: - / мелкоцвет бирюза / - / - / - / - | E104: 195 | F104: =IF(MIN(Y104:AO104)=MAX(Y104:AO104),ROUND(MIN(Y104:AO104)*(1-$F$9),0),ROUND(MIN(Y104:AO104)*(1-$F$9),0)&"-"&ROUND(MAX(Y104:AO104)*(1-$F$9),0)) -> 172 | X104: =(G104*Y104+H104*Z104+I104*AA104+J104*AB104+K104*AC104+L104*AD104+M104*AE104+N104*AF104+O104*AG104+P104*AH104+Q104*AI104+R104*AJ104+S104*AK104+T104*AL104+U104*AM104+V104*AN104+W104*AO104)*(1-$F$9) -> 0 | AA104: 195 | AB104: 195 | AC104: 195 | AD104: 195 | AE104: 195 | AF104: 195 | AR104: 336571 | AS104: 336572 | AT104: 336573 | AU104: 336574 | AV104: 336575 | AW104: 336576
B105: [486372]Гарнитур для девочки ДНГ684001н | C105: кулир / хлопок 100% | D105: - / мелкоцвет малина / - / - / - / - | E105: 195 | F105: =IF(MIN(Y105:AO105)=MAX(Y105:AO105),ROUND(MIN(Y105:AO105)*(1-$F$9),0),ROUND(MIN(Y105:AO105)*(1-$F$9),0)&"-"&ROUND(MAX(Y105:AO105)*(1-$F$9),0)) -> 172 | X105: =(G105*Y105+H105*Z105+I105*AA105+J105*AB105+K105*AC105+L105*AD105+M105*AE105+N105*AF105+O105*AG105+P105*AH105+Q105*AI105+R105*AJ105+S105*AK105+T105*AL105+U105*AM105+V105*AN105+W105*AO105)*(1-$F$9) -> 0 | AA105: 195 | AB105: 195 | AC105: 195 | AD105: 195 | AE105: 195 | AF105: 195 | AR105: 336577 | AS105: 336578 | AT105: 336579 | AU105: 336580 | AV105: 336581 | AW105: 336582
B106: [486355]Майка для девочки ДНМ665001 | C106: кулир / хлопок 100% | D106: белый / - / Мишка и письмо / - / - / - | E106: 135 | F106: =IF(MIN(Y106:AO106)=MAX(Y106:AO106),ROUND(MIN(Y106:AO106)*(1-$F$9),0),ROUND(MIN(Y106:AO106)*(1-$F$9),0)&"-"&ROUND(MAX(Y106:AO106)*(1-$F$9),0)) -> 119 | X106: =(G106*Y106+H106*Z106+I106*AA106+J106*AB106+K106*AC106+L106*AD106+M106*AE106+N106*AF106+O106*AG106+P106*AH106+Q106*AI106+R106*AJ106+S106*AK106+T106*AL106+U106*AM106+V106*AN106+W106*AO106)*(1-$F$9) -> 0 | AA106: 135 | AB106: 135 | AC106: 135 | AD106: 135 | AE106: 135 | AF106: 135 | AR106: 336475 | AS106: 336476 | AT106: 336477 | AU106: 336478 | AV106: 336479 | AW106: 336480
B107: [486356]Майка для девочки ДНМ665001 | C107: кулир / хлопок 100% | D107: белый / - / Шесть мордочек / - / - / - | E107: 135 | F107: =IF(MIN(Y107:AO107)=MAX(Y107:AO107),ROUND(MIN(Y107:AO107)*(1-$F$9),0),ROUND(MIN(Y107:AO107)*(1-$F$9),0)&"-"&ROUND(MAX(Y107:AO107)*(1-$F$9),0)) -> 119 | X107: =(G107*Y107+H107*Z107+I107*AA107+J107*AB107+K107*AC107+L107*AD107+M107*AE107+N107*AF107+O107*AG107+P107*AH107+Q107*AI107+R107*AJ107+S107*AK107+T107*AL107+U107*AM107+V107*AN107+W107*AO107)*(1-$F$9) -> 0 | AA107: 135 | AB107: 135 | AC107: 135 | AD107: 135 | AE107: 135 | AF107: 135 | AR107: 336481 | AS107: 336482 | AT107: 336483 | AU107: 336484 | AV107: 336485 | AW107: 336486
B108: [486357]Майка для девочки ДНМ665001н | C108: кулир / хлопок 100% | D108: - / мелкоцвет бирюза / - / - / - / - | E108: 120 | F108: =IF(MIN(Y108:AO108)=MAX(Y108:AO108),ROUND(MIN(Y108:AO108)*(1-$F$9),0),ROUND(MIN(Y108:AO108)*(1-$F$9),0)&"-"&ROUND(MAX(Y108:AO108)*(1-$F$9),0)) -> 106 | X108: =(G108*Y108+H108*Z108+I108*AA108+J108*AB108+K108*AC108+L108*AD108+M108*AE108+N108*AF108+O108*AG108+P108*AH108+Q108*AI108+R108*AJ108+S108*AK108+T108*AL108+U108*AM108+V108*AN108+W108*AO108)*(1-$F$9) -> 0 | AA108: 120 | AB108: 120 | AC108: 120 | AD108: 120 | AE108: 120 | AF108: 120 | AR108: 336487 | AS108: 336488 | AT108: 336489 | AU108: 336490 | AV108: 336491 | AW108: 336492
B109: [486358]Майка для девочки ДНМ665001н | C109: кулир / хлопок 100% | D109: - / мелкоцвет малина / - / - / - / - | E109: 120 | F109: =IF(MIN(Y109:AO109)=MAX(Y109:AO109),ROUND(MIN(Y109:AO109)*(1-$F$9),0),ROUND(MIN(Y109:AO109)*(1-$F$9),0)&"-"&ROUND(MAX(Y109:AO109)*(1-$F$9),0)) -> 106 | X109: =(G109*Y109+H109*Z109+I109*AA109+J109*AB109+K109*AC109+L109*AD109+M109*AE109+N109*AF109+O109*AG109+P109*AH109+Q109*AI109+R109*AJ109+S109*AK109+T109*AL109+U109*AM109+V109*AN109+W109*AO109)*(1-$F$9) -> 0 | AA109: 120 | AB109: 120 | AC109: 120 | AD109: 120 | AE109: 120 | AF109: 120 | AR109: 336493 | AS109: 336494 | AT109: 336495 | AU109: 336496 | AV109: 336497 | AW109: 336498
B110: [486359]Майка для девочки ДНМ973001 | C110: кулир / хлопок 100% | D110: белый / - / Вверх / - / - / - | E110: 130 | F110: =IF(MIN(Y110:AO110)=MAX(Y110:AO110),ROUND(MIN(Y110:AO110)*(1-$F$9),0),ROUND(MIN(Y110:AO110)*(1-$F$9),0)&"-"&ROUND(MAX(Y110:AO110)*(1-$F$9),0)) -> 114 | X110: =(G110*Y110+H110*Z110+I110*AA110+J110*AB110+K110*AC110+L110*AD110+M110*AE110+N110*AF110+O110*AG110+P110*AH110+Q110*AI110+R110*AJ110+S110*AK110+T110*AL110+U110*AM110+V110*AN110+W110*AO110)*(1-$F$9) -> 0 | AA110: 130 | AB110: 130 | AC110: 130 | AD110: 130 | AE110: 130 | AF110: 130 | AR110: 336499 | AS110: 336500 | AT110: 336501 | AU110: 336502 | AV110: 336503 | AW110: 336504
B111: [486360]Майка для девочки ДНМ973001 | C111: кулир / хлопок 100% | D111: белый / - / Шесть мордочек / - / - / - | E111: 130 | F111: =IF(MIN(Y111:AO111)=MAX(Y111:AO111),ROUND(MIN(Y111:AO111)*(1-$F$9),0),ROUND(MIN(Y111:AO111)*(1-$F$9),0)&"-"&ROUND(MAX(Y111:AO111)*(1-$F$9),0)) -> 114 | X111: =(G111*Y111+H111*Z111+I111*AA111+J111*AB111+K111*AC111+L111*AD111+M111*AE111+N111*AF111+O111*AG111+P111*AH111+Q111*AI111+R111*AJ111+S111*AK111+T111*AL111+U111*AM111+V111*AN111+W111*AO111)*(1-$F$9) -> 0 | AA111: 130 | AB111: 130 | AC111: 130 | AD111: 130 | AE111: 130 | AF111: 130 | AR111: 336505 | AS111: 336506 | AT111: 336507 | AU111: 336508 | AV111: 336509 | AW111: 336510
B112: [486361]Майка для девочки ДНМ973001н | C112: кулир / хлопок 100% | D112: - / мелкоцвет бирюза / - / - / - / - | E112: 110 | F112: =IF(MIN(Y112:AO112)=MAX(Y112:AO112),ROUND(MIN(Y112:AO112)*(1-$F$9),0),ROUND(MIN(Y112:AO112)*(1-$F$9),0)&"-"&ROUND(MAX(Y112:AO112)*(1-$F$9),0)) -> 97 | X112: =(G112*Y112+H112*Z112+I112*AA112+J112*AB112+K112*AC112+L112*AD112+M112*AE112+N112*AF112+O112*AG112+P112*AH112+Q112*AI112+R112*AJ112+S112*AK112+T112*AL112+U112*AM112+V112*AN112+W112*AO112)*(1-$F$9) -> 0 | AA112: 110 | AB112: 110 | AC112: 110 | AD112: 110 | AE112: 110 | AF112: 110 | AR112: 336511 | AS112: 336512 | AT112: 336513 | AU112: 336514 | AV112: 336515 | AW112: 336516
B113: [486362]Майка для девочки ДНМ973001н | C113: кулир / хлопок 100% | D113: - / мелкоцвет малина / - / - / - / - | E113: 110 | F113: =IF(MIN(Y113:AO113)=MAX(Y113:AO113),ROUND(MIN(Y113:AO113)*(1-$F$9),0),ROUND(MIN(Y113:AO113)*(1-$F$9),0)&"-"&ROUND(MAX(Y113:AO113)*(1-$F$9),0)) -> 97 | X113: =(G113*Y113+H113*Z113+I113*AA113+J113*AB113+K113*AC113+L113*AD113+M113*AE113+N113*AF113+O113*AG113+P113*AH113+Q113*AI113+R113*AJ113+S113*AK113+T113*AL113+U113*AM113+V113*AN113+W113*AO113)*(1-$F$9) -> 0 | AA113: 110 | AB113: 110 | AC113: 110 | AD113: 110 | AE113: 110 | AF113: 110 | AR113: 336517 | AS113: 336518 | AT113: 336519 | AU113: 336520 | AV113: 336521 | AW113: 336522
B114: [486363]Трусы для девочки ДНТ034001н | C114: кулир / хлопок 100% | D114: - / мелкоцвет бирюза / - / - / - / - | E114: 75 | F114: =IF(MIN(Y114:AO114)=MAX(Y114:AO114),ROUND(MIN(Y114:AO114)*(1-$F$9),0),ROUND(MIN(Y114:AO114)*(1-$F$9),0)&"-"&ROUND(MAX(Y114:AO114)*(1-$F$9),0)) -> 66 | X114: =(G114*Y114+H114*Z114+I114*AA114+J114*AB114+K114*AC114+L114*AD114+M114*AE114+N114*AF114+O114*AG114+P114*AH114+Q114*AI114+R114*AJ114+S114*AK114+T114*AL114+U114*AM114+V114*AN114+W114*AO114)*(1-$F$9) -> 0 | AA114: 75 | AB114: 75 | AC114: 75 | AD114: 75 | AE114: 75 | AF114: 75 | AR114: 336523 | AS114: 336524 | AT114: 336525 | AU114: 336526 | AV114: 336527 | AW114: 336528
B115: [486364]Трусы для девочки ДНТ034001н | C115: кулир / хлопок 100% | D115: - / мелкоцвет малина / - / - / - / - | E115: 75 | F115: =IF(MIN(Y115:AO115)=MAX(Y115:AO115),ROUND(MIN(Y115:AO115)*(1-$F$9),0),ROUND(MIN(Y115:AO115)*(1-$F$9),0)&"-"&ROUND(MAX(Y115:AO115)*(1-$F$9),0)) -> 66 | X115: =(G115*Y115+H115*Z115+I115*AA115+J115*AB115+K115*AC115+L115*AD115+M115*AE115+N115*AF115+O115*AG115+P115*AH115+Q115*AI115+R115*AJ115+S115*AK115+T115*AL115+U115*AM115+V115*AN115+W115*AO115)*(1-$F$9) -> 0 | AA115: 75 | AB115: 75 | AC115: 75 | AD115: 75 | AE115: 75 | AF115: 75 | AR115: 336529 | AS115: 336530 | AT115: 336531 | AU115: 336532 | AV115: 336533 | AW115: 336534
B116: Коллекция "Высота"
B117: [227959]Трусы для мальчика ПНП700001н | C117: кулир / хлопок 100% | D117: - / черный+камуфляж цифра ночь / - / - / черный / - | E117: 100-120 | F117: =IF(MIN(Y117:AO117)=MAX(Y117:AO117),ROUND(MIN(Y117:AO117)*(1-$F$9),0),ROUND(MIN(Y117:AO117)*(1-$F$9),0)&"-"&ROUND(MAX(Y117:AO117)*(1-$F$9),0)) -> 88-106 | X117: =(G117*Y117+H117*Z117+I117*AA117+J117*AB117+K117*AC117+L117*AD117+M117*AE117+N117*AF117+O117*AG117+P117*AH117+Q117*AI117+R117*AJ117+S117*AK117+T117*AL117+U117*AM117+V117*AN117+W117*AO117)*(1-$F$9) -> 0 | AF117: 100 | AG117: 100 | AH117: 100 | AI117: 100 | AJ117: 100 | AK117: 105 | AL117: 105 | AM117: 105 | AN117: 120 | AW117: 212301 | AX117: 212302 | AY117: 212303 | AZ117: 212304 | BA117: 212305 | BB117: 212306 | BC117: 212307 | BD117: 212308 | BE117: 212309
B118: Коллекция "Гжель"
B119: [490582]Гарнитур для девочки ДНГ553804н | C119: кулир / хлопок 100%, хлопок 92% + лайкра 8% | D119: - / белый+гжель василек / Собака с сумкой / гжель василек / - / - | E119: 220 | F119: =IF(MIN(Y119:AO119)=MAX(Y119:AO119),ROUND(MIN(Y119:AO119)*(1-$F$9),0),ROUND(MIN(Y119:AO119)*(1-$F$9),0)&"-"&ROUND(MAX(Y119:AO119)*(1-$F$9),0)) -> 194 | X119: =(G119*Y119+H119*Z119+I119*AA119+J119*AB119+K119*AC119+L119*AD119+M119*AE119+N119*AF119+O119*AG119+P119*AH119+Q119*AI119+R119*AJ119+S119*AK119+T119*AL119+U119*AM119+V119*AN119+W119*AO119)*(1-$F$9) -> 0 | AB119: 220 | AC119: 220 | AD119: 220 | AE119: 220 | AF119: 220 | AS119: 356756 | AT119: 356757 | AU119: 356758 | AV119: 356759 | AW119: 356760
B120: [490584]Гарнитур для девочки ДНГ684804н | C120: кулир / хлопок 100%, хлопок 92% + лайкра 8% | D120: - / белый+гжель василек / Собака с сумкой / гжель василек / - / - | E120: 220 | F120: =IF(MIN(Y120:AO120)=MAX(Y120:AO120),ROUND(MIN(Y120:AO120)*(1-$F$9),0),ROUND(MIN(Y120:AO120)*(1-$F$9),0)&"-"&ROUND(MAX(Y120:AO120)*(1-$F$9),0)) -> 194 | X120: =(G120*Y120+H120*Z120+I120*AA120+J120*AB120+K120*AC120+L120*AD120+M120*AE120+N120*AF120+O120*AG120+P120*AH120+Q120*AI120+R120*AJ120+S120*AK120+T120*AL120+U120*AM120+V120*AN120+W120*AO120)*(1-$F$9) -> 0 | AB120: 220 | AC120: 220 | AD120: 220 | AE120: 220 | AF120: 220 | AS120: 356766 | AT120: 356767 | AU120: 356768 | AV120: 356769 | AW120: 356770
B121: [490575]Майка для девочки ДНМ665001 | C121: кулир / хлопок 100% | D121: белый / - / Матрешка / - / - / - | E121: 130 | F121: =IF(MIN(Y121:AO121)=MAX(Y121:AO121),ROUND(MIN(Y121:AO121)*(1-$F$9),0),ROUND(MIN(Y121:AO121)*(1-$F$9),0)&"-"&ROUND(MAX(Y121:AO121)*(1-$F$9),0)) -> 114 | X121: =(G121*Y121+H121*Z121+I121*AA121+J121*AB121+K121*AC121+L121*AD121+M121*AE121+N121*AF121+O121*AG121+P121*AH121+Q121*AI121+R121*AJ121+S121*AK121+T121*AL121+U121*AM121+V121*AN121+W121*AO121)*(1-$F$9) -> 0 | AB121: 130 | AC121: 130 | AD121: 130 | AE121: 130 | AF121: 130 | AS121: 356721 | AT121: 356722 | AU121: 356723 | AV121: 356724 | AW121: 356725
B122: [490576]Майка для девочки ДНМ665001 | C122: кулир / хлопок 100% | D122: белый / - / Собака с сумкой / - / - / - | E122: 130 | F122: =IF(MIN(Y122:AO122)=MAX(Y122:AO122),ROUND(MIN(Y122:AO122)*(1-$F$9),0),ROUND(MIN(Y122:AO122)*(1-$F$9),0)&"-"&ROUND(MAX(Y122:AO122)*(1-$F$9),0)) -> 114 | X122: =(G122*Y122+H122*Z122+I122*AA122+J122*AB122+K122*AC122+L122*AD122+M122*AE122+N122*AF122+O122*AG122+P122*AH122+Q122*AI122+R122*AJ122+S122*AK122+T122*AL122+U122*AM122+V122*AN122+W122*AO122)*(1-$F$9) -> 0 | AB122: 130 | AC122: 130 | AD122: 130 | AE122: 130 | AF122: 130 | AS122: 356726 | AT122: 356727 | AU122: 356728 | AV122: 356729 | AW122: 356730
B123: [490577]Майка для девочки ДНМ973001 | C123: кулир / хлопок 100% | D123: белый / - / Матрешка / - / - / - | E123: 130 | F123: =IF(MIN(Y123:AO123)=MAX(Y123:AO123),ROUND(MIN(Y123:AO123)*(1-$F$9),0),ROUND(MIN(Y123:AO123)*(1-$F$9),0)&"-"&ROUND(MAX(Y123:AO123)*(1-$F$9),0)) -> 114 | X123: =(G123*Y123+H123*Z123+I123*AA123+J123*AB123+K123*AC123+L123*AD123+M123*AE123+N123*AF123+O123*AG123+P123*AH123+Q123*AI123+R123*AJ123+S123*AK123+T123*AL123+U123*AM123+V123*AN123+W123*AO123)*(1-$F$9) -> 0 | AB123: 130 | AC123: 130 | AD123: 130 | AE123: 130 | AF123: 130 | AS123: 356731 | AT123: 356732 | AU123: 356733 | AV123: 356734 | AW123: 356735
B124: [490578]Майка для девочки ДНМ973001 | C124: кулир / хлопок 100% | D124: белый / - / Собака с сумкой / - / - / - | E124: 130 | F124: =IF(MIN(Y124:AO124)=MAX(Y124:AO124),ROUND(MIN(Y124:AO124)*(1-$F$9),0),ROUND(MIN(Y124:AO124)*(1-$F$9),0)&"-"&ROUND(MAX(Y124:AO124)*(1-$F$9),0)) -> 114 | X124: =(G124*Y124+H124*Z124+I124*AA124+J124*AB124+K124*AC124+L124*AD124+M124*AE124+N124*AF124+O124*AG124+P124*AH124+Q124*AI124+R124*AJ124+S124*AK124+T124*AL124+U124*AM124+V124*AN124+W124*AO124)*(1-$F$9) -> 0 | AB124: 130 | AC124: 130 | AD124: 130 | AE124: 130 | AF124: 130 | AS124: 356736 | AT124: 356737 | AU124: 356738 | AV124: 356739 | AW124: 356740
B125: [490579]Трусы для девочки ДНТ034001 | C125: кулир / хлопок 100% | D125: белый / - / Цветок гжель / - / - / - | E125: 90 | F125: =IF(MIN(Y125:AO125)=MAX(Y125:AO125),ROUND(MIN(Y125:AO125)*(1-$F$9),0),ROUND(MIN(Y125:AO125)*(1-$F$9),0)&"-"&ROUND(MAX(Y125:AO125)*(1-$F$9),0)) -> 79 | X125: =(G125*Y125+H125*Z125+I125*AA125+J125*AB125+K125*AC125+L125*AD125+M125*AE125+N125*AF125+O125*AG125+P125*AH125+Q125*AI125+R125*AJ125+S125*AK125+T125*AL125+U125*AM125+V125*AN125+W125*AO125)*(1-$F$9) -> 0 | AB125: 90 | AC125: 90 | AD125: 90 | AE125: 90 | AF125: 90 | AS125: 356741 | AT125: 356742 | AU125: 356743 | AV125: 356744 | AW125: 356745
B126: [490580]Трусы для девочки ДНТ034804н | C126: кулир с лайкрой / хлопок 92% + лайкра 8% | D126: - / гжель василек / - / - / - / - | E126: 90 | F126: =IF(MIN(Y126:AO126)=MAX(Y126:AO126),ROUND(MIN(Y126:AO126)*(1-$F$9),0),ROUND(MIN(Y126:AO126)*(1-$F$9),0)&"-"&ROUND(MAX(Y126:AO126)*(1-$F$9),0)) -> 79 | X126: =(G126*Y126+H126*Z126+I126*AA126+J126*AB126+K126*AC126+L126*AD126+M126*AE126+N126*AF126+O126*AG126+P126*AH126+Q126*AI126+R126*AJ126+S126*AK126+T126*AL126+U126*AM126+V126*AN126+W126*AO126)*(1-$F$9) -> 0 | AB126: 90 | AC126: 90 | AD126: 90 | AE126: 90 | AF126: 90 | AS126: 356746 | AT126: 356747 | AU126: 356748 | AV126: 356749 | AW126: 356750
B127: Коллекция "Голубая планета"
B128: [489331]Гарнитур для девочки ДНГ684001н | C128: кулир / хлопок 100% | D128: - / белый+космические звери синий / Заяц на планете / космические звери синий / - / - | E128: 215 | F128: =IF(MIN(Y128:AO128)=MAX(Y128:AO128),ROUND(MIN(Y128:AO128)*(1-$F$9),0),ROUND(MIN(Y128:AO128)*(1-$F$9),0)&"-"&ROUND(MAX(Y128:AO128)*(1-$F$9),0)) -> 189 | X128: =(G128*Y128+H128*Z128+I128*AA128+J128*AB128+K128*AC128+L128*AD128+M128*AE128+N128*AF128+O128*AG128+P128*AH128+Q128*AI128+R128*AJ128+S128*AK128+T128*AL128+U128*AM128+V128*AN128+W128*AO128)*(1-$F$9) -> 0 | AA128: 215 | AB128: 215 | AC128: 215 | AD128: 215 | AE128: 215 | AF128: 215 | AR128: 351304 | AS128: 351305 | AT128: 351306 | AU128: 351307 | AV128: 351308 | AW128: 351309
B129: [292149]Майка для девочки ДНМ665001 | C129: кулир / хлопок 100% | D129: белый / - / Заяц на планете / - / - / - | E129: 130 | F129: =IF(MIN(Y129:AO129)=MAX(Y129:AO129),ROUND(MIN(Y129:AO129)*(1-$F$9),0),ROUND(MIN(Y129:AO129)*(1-$F$9),0)&"-"&ROUND(MAX(Y129:AO129)*(1-$F$9),0)) -> 114 | X129: =(G129*Y129+H129*Z129+I129*AA129+J129*AB129+K129*AC129+L129*AD129+M129*AE129+N129*AF129+O129*AG129+P129*AH129+Q129*AI129+R129*AJ129+S129*AK129+T129*AL129+U129*AM129+V129*AN129+W129*AO129)*(1-$F$9) -> 0 | AA129: 130 | AB129: 130 | AC129: 130 | AD129: 130 | AE129: 130 | AF129: 130 | AR129: 292148 | AS129: 292150 | AT129: 292151 | AU129: 292152 | AV129: 292153 | AW129: 351358
B130: [292167]Майка для девочки ДНМ973001 | C130: кулир / хлопок 100% | D130: белый / - / Заяц на планете / - / - / - | E130: 130 | F130: =IF(MIN(Y130:AO130)=MAX(Y130:AO130),ROUND(MIN(Y130:AO130)*(1-$F$9),0),ROUND(MIN(Y130:AO130)*(1-$F$9),0)&"-"&ROUND(MAX(Y130:AO130)*(1-$F$9),0)) -> 114 | X130: =(G130*Y130+H130*Z130+I130*AA130+J130*AB130+K130*AC130+L130*AD130+M130*AE130+N130*AF130+O130*AG130+P130*AH130+Q130*AI130+R130*AJ130+S130*AK130+T130*AL130+U130*AM130+V130*AN130+W130*AO130)*(1-$F$9) -> 0 | AA130: 130 | AB130: 130 | AC130: 130 | AD130: 130 | AE130: 130 | AF130: 130 | AR130: 292166 | AS130: 292168 | AT130: 292169 | AU130: 292170 | AV130: 292171 | AW130: 351360
B131: [292173]Майка для девочки ДНМ973001 | C131: кулир / хлопок 100% | D131: белый / - / Кошка и Сатурн / - / - / - | E131: 130 | F131: =IF(MIN(Y131:AO131)=MAX(Y131:AO131),ROUND(MIN(Y131:AO131)*(1-$F$9),0),ROUND(MIN(Y131:AO131)*(1-$F$9),0)&"-"&ROUND(MAX(Y131:AO131)*(1-$F$9),0)) -> 114 | X131: =(G131*Y131+H131*Z131+I131*AA131+J131*AB131+K131*AC131+L131*AD131+M131*AE131+N131*AF131+O131*AG131+P131*AH131+Q131*AI131+R131*AJ131+S131*AK131+T131*AL131+U131*AM131+V131*AN131+W131*AO131)*(1-$F$9) -> 0 | AA131: 130 | AB131: 130 | AC131: 130 | AD131: 130 | AE131: 130 | AF131: 130 | AR131: 292172 | AS131: 292174 | AT131: 292175 | AU131: 292176 | AV131: 292177 | AW131: 351361
B132: [292179]Трусы для девочки ДНТ034001 | C132: кулир / хлопок 100% | D132: белый / - / Маленький котенок / - / - / - | E132: 85 | F132: =IF(MIN(Y132:AO132)=MAX(Y132:AO132),ROUND(MIN(Y132:AO132)*(1-$F$9),0),ROUND(MIN(Y132:AO132)*(1-$F$9),0)&"-"&ROUND(MAX(Y132:AO132)*(1-$F$9),0)) -> 75 | X132: =(G132*Y132+H132*Z132+I132*AA132+J132*AB132+K132*AC132+L132*AD132+M132*AE132+N132*AF132+O132*AG132+P132*AH132+Q132*AI132+R132*AJ132+S132*AK132+T132*AL132+U132*AM132+V132*AN132+W132*AO132)*(1-$F$9) -> 0 | AA132: 85 | AB132: 85 | AC132: 85 | AD132: 85 | AE132: 85 | AF132: 85 | AG132: 85 | AR132: 292178 | AS132: 292180 | AT132: 292181 | AU132: 292182 | AV132: 292183 | AW132: 358185 | AX132: 358186
B133: [489339]Трусы для девочки ДНТ034001н | C133: кулир / хлопок 100% | D133: - / космические звери синий / - / - / - / - | E133: 85 | F133: =IF(MIN(Y133:AO133)=MAX(Y133:AO133),ROUND(MIN(Y133:AO133)*(1-$F$9),0),ROUND(MIN(Y133:AO133)*(1-$F$9),0)&"-"&ROUND(MAX(Y133:AO133)*(1-$F$9),0)) -> 75 | X133: =(G133*Y133+H133*Z133+I133*AA133+J133*AB133+K133*AC133+L133*AD133+M133*AE133+N133*AF133+O133*AG133+P133*AH133+Q133*AI133+R133*AJ133+S133*AK133+T133*AL133+U133*AM133+V133*AN133+W133*AO133)*(1-$F$9) -> 0 | AA133: 85 | AB133: 85 | AC133: 85 | AD133: 85 | AE133: 85 | AF133: 85 | AR133: 351352 | AS133: 351353 | AT133: 351354 | AU133: 351355 | AV133: 351356 | AW133: 351357
B134: Коллекция "Горошки и зверушки"
B135: [491211]Гарнитур для девочки ДНГ453001н | C135: кулир / хлопок 100% | D135: - / белый+мелкий горох на бирюзе / Котенок с тюльпанами / мелкий горох на бирюзе / мелкий горох на бирюзе / - | E135: 215 | F135: =IF(MIN(Y135:AO135)=MAX(Y135:AO135),ROUND(MIN(Y135:AO135)*(1-$F$9),0),ROUND(MIN(Y135:AO135)*(1-$F$9),0)&"-"&ROUND(MAX(Y135:AO135)*(1-$F$9),0)) -> 189 | X135: =(G135*Y135+H135*Z135+I135*AA135+J135*AB135+K135*AC135+L135*AD135+M135*AE135+N135*AF135+O135*AG135+P135*AH135+Q135*AI135+R135*AJ135+S135*AK135+T135*AL135+U135*AM135+V135*AN135+W135*AO135)*(1-$F$9) -> 0 | AA135: 215 | AB135: 215 | AC135: 215 | AD135: 215 | AE135: 215 | AF135: 215 | AR135: 360356 | AS135: 360357 | AT135: 360358 | AU135: 360359 | AV135: 360360 | AW135: 360361
B136: [491212]Гарнитур для девочки ДНГ453001н | C136: кулир / хлопок 100% | D136: - / белый+мелкий горох на малине / Плюшевый зайчик / мелкий горох на малине / мелкий горох на малине / - | E136: 215 | F136: =IF(MIN(Y136:AO136)=MAX(Y136:AO136),ROUND(MIN(Y136:AO136)*(1-$F$9),0),ROUND(MIN(Y136:AO136)*(1-$F$9),0)&"-"&ROUND(MAX(Y136:AO136)*(1-$F$9),0)) -> 189 | X136: =(G136*Y136+H136*Z136+I136*AA136+J136*AB136+K136*AC136+L136*AD136+M136*AE136+N136*AF136+O136*AG136+P136*AH136+Q136*AI136+R136*AJ136+S136*AK136+T136*AL136+U136*AM136+V136*AN136+W136*AO136)*(1-$F$9) -> 0 | AA136: 215 | AB136: 215 | AC136: 215 | AD136: 215 | AE136: 215 | AF136: 215 | AR136: 360362 | AS136: 360363 | AT136: 360364 | AU136: 360365 | AV136: 360366 | AW136: 360367
B137: [491213]Гарнитур для девочки ДНГ681001н | C137: кулир / хлопок 100% | D137: - / белый+мелкий горох на бирюзе / Мышка с сердечком / мелкий горох на бирюзе / мелкий горох на бирюзе / - | E137: 215 | F137: =IF(MIN(Y137:AO137)=MAX(Y137:AO137),ROUND(MIN(Y137:AO137)*(1-$F$9),0),ROUND(MIN(Y137:AO137)*(1-$F$9),0)&"-"&ROUND(MAX(Y137:AO137)*(1-$F$9),0)) -> 189 | X137: =(G137*Y137+H137*Z137+I137*AA137+J137*AB137+K137*AC137+L137*AD137+M137*AE137+N137*AF137+O137*AG137+P137*AH137+Q137*AI137+R137*AJ137+S137*AK137+T137*AL137+U137*AM137+V137*AN137+W137*AO137)*(1-$F$9) -> 0 | AA137: 215 | AB137: 215 | AC137: 215 | AD137: 215 | AE137: 215 | AF137: 215 | AR137: 360368 | AS137: 360369 | AT137: 360370 | AU137: 360371 | AV137: 360372 | AW137: 360373
B138: [491214]Гарнитур для девочки ДНГ681001н | C138: кулир / хлопок 100% | D138: - / белый+мелкий горох на малине / Мишка с корзинкой / мелкий горох на малине / мелкий горох на малине / - | E138: 215 | F138: =IF(MIN(Y138:AO138)=MAX(Y138:AO138),ROUND(MIN(Y138:AO138)*(1-$F$9),0),ROUND(MIN(Y138:AO138)*(1-$F$9),0)&"-"&ROUND(MAX(Y138:AO138)*(1-$F$9),0)) -> 189 | X138: =(G138*Y138+H138*Z138+I138*AA138+J138*AB138+K138*AC138+L138*AD138+M138*AE138+N138*AF138+O138*AG138+P138*AH138+Q138*AI138+R138*AJ138+S138*AK138+T138*AL138+U138*AM138+V138*AN138+W138*AO138)*(1-$F$9) -> 0 | AA138: 215 | AB138: 215 | AC138: 215 | AD138: 215 | AE138: 215 | AF138: 215 | AR138: 360374 | AS138: 360375 | AT138: 360376 | AU138: 360377 | AV138: 360378 | AW138: 360379
B139: [491222]Майка для девочки ДНМ120001 | C139: кулир / хлопок 100% | D139: белый / - / Мишка с корзинкой / - / мелкий горох на малине / - | E139: 130 | F139: =IF(MIN(Y139:AO139)=MAX(Y139:AO139),ROUND(MIN(Y139:AO139)*(1-$F$9),0),ROUND(MIN(Y139:AO139)*(1-$F$9),0)&"-"&ROUND(MAX(Y139:AO139)*(1-$F$9),0)) -> 114 | X139: =(G139*Y139+H139*Z139+I139*AA139+J139*AB139+K139*AC139+L139*AD139+M139*AE139+N139*AF139+O139*AG139+P139*AH139+Q139*AI139+R139*AJ139+S139*AK139+T139*AL139+U139*AM139+V139*AN139+W139*AO139)*(1-$F$9) -> 0 | AA139: 130 | AB139: 130 | AC139: 130 | AD139: 130 | AE139: 130 | AF139: 130 | AR139: 360422 | AS139: 360423 | AT139: 360424 | AU139: 360425 | AV139: 360426 | AW139: 360427
B140: [491223]Майка для девочки ДНМ120001 | C140: кулир / хлопок 100% | D140: белый / - / Мышка с сердечком / - / мелкий горох на бирюзе / - | E140: 130 | F140: =IF(MIN(Y140:AO140)=MAX(Y140:AO140),ROUND(MIN(Y140:AO140)*(1-$F$9),0),ROUND(MIN(Y140:AO140)*(1-$F$9),0)&"-"&ROUND(MAX(Y140:AO140)*(1-$F$9),0)) -> 114 | X140: =(G140*Y140+H140*Z140+I140*AA140+J140*AB140+K140*AC140+L140*AD140+M140*AE140+N140*AF140+O140*AG140+P140*AH140+Q140*AI140+R140*AJ140+S140*AK140+T140*AL140+U140*AM140+V140*AN140+W140*AO140)*(1-$F$9) -> 0 | AA140: 130 | AB140: 130 | AC140: 130 | AD140: 130 | AE140: 130 | AF140: 130 | AR140: 360428 | AS140: 360429 | AT140: 360430 | AU140: 360431 | AV140: 360432 | AW140: 360433
B141: [491224]Майка для девочки ДНМ154001 | C141: кулир / хлопок 100% | D141: белый / - / Котенок с тюльпанами / - / мелкий горох на бирюзе / - | E141: 130 | F141: =IF(MIN(Y141:AO141)=MAX(Y141:AO141),ROUND(MIN(Y141:AO141)*(1-$F$9),0),ROUND(MIN(Y141:AO141)*(1-$F$9),0)&"-"&ROUND(MAX(Y141:AO141)*(1-$F$9),0)) -> 114 | X141: =(G141*Y141+H141*Z141+I141*AA141+J141*AB141+K141*AC141+L141*AD141+M141*AE141+N141*AF141+O141*AG141+P141*AH141+Q141*AI141+R141*AJ141+S141*AK141+T141*AL141+U141*AM141+V141*AN141+W141*AO141)*(1-$F$9) -> 0 | AA141: 130 | AB141: 130 | AC141: 130 | AD141: 130 | AE141: 130 | AF141: 130 | AR141: 360434 | AS141: 360435 | AT141: 360436 | AU141: 360437 | AV141: 360438 | AW141: 360439
B142: [491758]Майка для девочки ДНМ154001 | C142: кулир / хлопок 100% | D142: белый / - / Мишка с корзинкой / - / мелкий горох на малине / - | E142: 130 | F142: =IF(MIN(Y142:AO142)=MAX(Y142:AO142),ROUND(MIN(Y142:AO142)*(1-$F$9),0),ROUND(MIN(Y142:AO142)*(1-$F$9),0)&"-"&ROUND(MAX(Y142:AO142)*(1-$F$9),0)) -> 114 | X142: =(G142*Y142+H142*Z142+I142*AA142+J142*AB142+K142*AC142+L142*AD142+M142*AE142+N142*AF142+O142*AG142+P142*AH142+Q142*AI142+R142*AJ142+S142*AK142+T142*AL142+U142*AM142+V142*AN142+W142*AO142)*(1-$F$9) -> 0 | AE142: 130 | AV142: 362746
B143: [491225]Майка для девочки ДНМ154001 | C143: кулир / хлопок 100% | D143: белый / - / Плюшевый зайчик / - / мелкий горох на малине / - | E143: 130 | F143: =IF(MIN(Y143:AO143)=MAX(Y143:AO143),ROUND(MIN(Y143:AO143)*(1-$F$9),0),ROUND(MIN(Y143:AO143)*(1-$F$9),0)&"-"&ROUND(MAX(Y143:AO143)*(1-$F$9),0)) -> 114 | X143: =(G143*Y143+H143*Z143+I143*AA143+J143*AB143+K143*AC143+L143*AD143+M143*AE143+N143*AF143+O143*AG143+P143*AH143+Q143*AI143+R143*AJ143+S143*AK143+T143*AL143+U143*AM143+V143*AN143+W143*AO143)*(1-$F$9) -> 0 | AA143: 130 | AB143: 130 | AC143: 130 | AD143: 130 | AE143: 130 | AF143: 130 | AR143: 360440 | AS143: 360441 | AT143: 360442 | AU143: 360443 | AV143: 360444 | AW143: 360445
B144: [491226]Трусы для девочки ДНТ034001 | C144: кулир / хлопок 100% | D144: белый / - / MY / - / - / - | E144: 85 | F144: =IF(MIN(Y144:AO144)=MAX(Y144:AO144),ROUND(MIN(Y144:AO144)*(1-$F$9),0),ROUND(MIN(Y144:AO144)*(1-$F$9),0)&"-"&ROUND(MAX(Y144:AO144)*(1-$F$9),0)) -> 75 | X144: =(G144*Y144+H144*Z144+I144*AA144+J144*AB144+K144*AC144+L144*AD144+M144*AE144+N144*AF144+O144*AG144+P144*AH144+Q144*AI144+R144*AJ144+S144*AK144+T144*AL144+U144*AM144+V144*AN144+W144*AO144)*(1-$F$9) -> 0 | AA144: 85 | AB144: 85 | AC144: 85 | AD144: 85 | AE144: 85 | AF144: 85 | AR144: 360446 | AS144: 360447 | AT144: 360448 | AU144: 360449 | AV144: 360450 | AW144: 360451
B145: [491227]Трусы для девочки ДНТ034001н | C145: кулир / хлопок 100% | D145: - / мелкий горох на бирюзе / - / - / - / - | E145: 85 | F145: =IF(MIN(Y145:AO145)=MAX(Y145:AO145),ROUND(MIN(Y145:AO145)*(1-$F$9),0),ROUND(MIN(Y145:AO145)*(1-$F$9),0)&"-"&ROUND(MAX(Y145:AO145)*(1-$F$9),0)) -> 75 | X145: =(G145*Y145+H145*Z145+I145*AA145+J145*AB145+K145*AC145+L145*AD145+M145*AE145+N145*AF145+O145*AG145+P145*AH145+Q145*AI145+R145*AJ145+S145*AK145+T145*AL145+U145*AM145+V145*AN145+W145*AO145)*(1-$F$9) -> 0 | AA145: 85 | AB145: 85 | AC145: 85 | AD145: 85 | AE145: 85 | AF145: 85 | AR145: 360452 | AS145: 360453 | AT145: 360454 | AU145: 360455 | AV145: 360456 | AW145: 360457
B146: [491228]Трусы для девочки ДНТ034001н | C146: кулир / хлопок 100% | D146: - / мелкий горох на малине / - / - / - / - | E146: 85 | F146: =IF(MIN(Y146:AO146)=MAX(Y146:AO146),ROUND(MIN(Y146:AO146)*(1-$F$9),0),ROUND(MIN(Y146:AO146)*(1-$F$9),0)&"-"&ROUND(MAX(Y146:AO146)*(1-$F$9),0)) -> 75 | X146: =(G146*Y146+H146*Z146+I146*AA146+J146*AB146+K146*AC146+L146*AD146+M146*AE146+N146*AF146+O146*AG146+P146*AH146+Q146*AI146+R146*AJ146+S146*AK146+T146*AL146+U146*AM146+V146*AN146+W146*AO146)*(1-$F$9) -> 0 | AA146: 85 | AB146: 85 | AC146: 85 | AD146: 85 | AE146: 85 | AF146: 85 | AR146: 360458 | AS146: 360459 | AT146: 360460 | AU146: 360461 | AV146: 360462 | AW146: 360463
B147: Коллекция "Ежики"
B148: [489601]Гарнитур для девочки ДНГ553001 | C148: кулир / хлопок 100% | D148: сливки / - / Ежик гуляет+Ежик с сердцем / сливки / розовый / - | E148: 220 | F148: =IF(MIN(Y148:AO148)=MAX(Y148:AO148),ROUND(MIN(Y148:AO148)*(1-$F$9),0),ROUND(MIN(Y148:AO148)*(1-$F$9),0)&"-"&ROUND(MAX(Y148:AO148)*(1-$F$9),0)) -> 194 | X148: =(G148*Y148+H148*Z148+I148*AA148+J148*AB148+K148*AC148+L148*AD148+M148*AE148+N148*AF148+O148*AG148+P148*AH148+Q148*AI148+R148*AJ148+S148*AK148+T148*AL148+U148*AM148+V148*AN148+W148*AO148)*(1-$F$9) -> 0 | AA148: 220 | AB148: 220 | AC148: 220 | AD148: 220 | AE148: 220 | AR148: 352466 | AS148: 352467 | AT148: 352468 | AU148: 352469 | AV148: 352470
B149: [489603]Майка для девочки ДНМ665001 | C149: кулир / хлопок 100% | D149: сливки / - / Ежик в траве / - / розовый / - | E149: 140 | F149: =IF(MIN(Y149:AO149)=MAX(Y149:AO149),ROUND(MIN(Y149:AO149)*(1-$F$9),0),ROUND(MIN(Y149:AO149)*(1-$F$9),0)&"-"&ROUND(MAX(Y149:AO149)*(1-$F$9),0)) -> 123 | X149: =(G149*Y149+H149*Z149+I149*AA149+J149*AB149+K149*AC149+L149*AD149+M149*AE149+N149*AF149+O149*AG149+P149*AH149+Q149*AI149+R149*AJ149+S149*AK149+T149*AL149+U149*AM149+V149*AN149+W149*AO149)*(1-$F$9) -> 0 | AA149: 140 | AB149: 140 | AC149: 140 | AD149: 140 | AE149: 140 | AR149: 352476 | AS149: 352477 | AT149: 352478 | AU149: 352479 | AV149: 352480
B150: [489604]Майка для девочки ДНМ665001 | C150: кулир / хлопок 100% | D150: сливки / - / Ежик гуляет / - / розовый / - | E150: 140 | F150: =IF(MIN(Y150:AO150)=MAX(Y150:AO150),ROUND(MIN(Y150:AO150)*(1-$F$9),0),ROUND(MIN(Y150:AO150)*(1-$F$9),0)&"-"&ROUND(MAX(Y150:AO150)*(1-$F$9),0)) -> 123 | X150: =(G150*Y150+H150*Z150+I150*AA150+J150*AB150+K150*AC150+L150*AD150+M150*AE150+N150*AF150+O150*AG150+P150*AH150+Q150*AI150+R150*AJ150+S150*AK150+T150*AL150+U150*AM150+V150*AN150+W150*AO150)*(1-$F$9) -> 0 | AA150: 140 | AB150: 140 | AC150: 140 | AD150: 140 | AE150: 140 | AR150: 352481 | AS150: 352482 | AT150: 352483 | AU150: 352484 | AV150: 352485
B151: [489605]Майка для девочки ДНМ973001 | C151: кулир / хлопок 100% | D151: сливки / - / Ежик в траве / - / розовый / - | E151: 130 | F151: =IF(MIN(Y151:AO151)=MAX(Y151:AO151),ROUND(MIN(Y151:AO151)*(1-$F$9),0),ROUND(MIN(Y151:AO151)*(1-$F$9),0)&"-"&ROUND(MAX(Y151:AO151)*(1-$F$9),0)) -> 114 | X151: =(G151*Y151+H151*Z151+I151*AA151+J151*AB151+K151*AC151+L151*AD151+M151*AE151+N151*AF151+O151*AG151+P151*AH151+Q151*AI151+R151*AJ151+S151*AK151+T151*AL151+U151*AM151+V151*AN151+W151*AO151)*(1-$F$9) -> 0 | AA151: 130 | AB151: 130 | AC151: 130 | AD151: 130 | AE151: 130 | AR151: 352486 | AS151: 352487 | AT151: 352488 | AU151: 352489 | AV151: 352490
B152: [489606]Майка для девочки ДНМ973001 | C152: кулир / хлопок 100% | D152: сливки / - / Ежик гуляет / - / розовый / - | E152: 130 | F152: =IF(MIN(Y152:AO152)=MAX(Y152:AO152),ROUND(MIN(Y152:AO152)*(1-$F$9),0),ROUND(MIN(Y152:AO152)*(1-$F$9),0)&"-"&ROUND(MAX(Y152:AO152)*(1-$F$9),0)) -> 114 | X152: =(G152*Y152+H152*Z152+I152*AA152+J152*AB152+K152*AC152+L152*AD152+M152*AE152+N152*AF152+O152*AG152+P152*AH152+Q152*AI152+R152*AJ152+S152*AK152+T152*AL152+U152*AM152+V152*AN152+W152*AO152)*(1-$F$9) -> 0 | AA152: 130 | AB152: 130 | AC152: 130 | AD152: 130 | AE152: 130 | AR152: 352491 | AS152: 352492 | AT152: 352493 | AU152: 352494 | AV152: 352495
B153: [489607]Трусы для девочки ДНТ034001 | C153: кулир / хлопок 100% | D153: сливки / - / Ежик с сердцем / - / розовый / - | E153: 90 | F153: =IF(MIN(Y153:AO153)=MAX(Y153:AO153),ROUND(MIN(Y153:AO153)*(1-$F$9),0),ROUND(MIN(Y153:AO153)*(1-$F$9),0)&"-"&ROUND(MAX(Y153:AO153)*(1-$F$9),0)) -> 79 | X153: =(G153*Y153+H153*Z153+I153*AA153+J153*AB153+K153*AC153+L153*AD153+M153*AE153+N153*AF153+O153*AG153+P153*AH153+Q153*AI153+R153*AJ153+S153*AK153+T153*AL153+U153*AM153+V153*AN153+W153*AO153)*(1-$F$9) -> 0 | AA153: 90 | AB153: 90 | AC153: 90 | AD153: 90 | AE153: 90 | AR153: 352496 | AS153: 352497 | AT153: 352498 | AU153: 352499 | AV153: 352500
B154: Коллекция "Зайка моя"
B155: [316352]Гарнитур для девочки ДНГ639024н | C155: ластик / хлопок 100% | D155: - / белый+сердечки василек / Зайчик с удочкой / - / василек / - | E155: 219-229 | F155: =IF(MIN(Y155:AO155)=MAX(Y155:AO155),ROUND(MIN(Y155:AO155)*(1-$F$9),0),ROUND(MIN(Y155:AO155)*(1-$F$9),0)&"-"&ROUND(MAX(Y155:AO155)*(1-$F$9),0)) -> 193-202 | X155: =(G155*Y155+H155*Z155+I155*AA155+J155*AB155+K155*AC155+L155*AD155+M155*AE155+N155*AF155+O155*AG155+P155*AH155+Q155*AI155+R155*AJ155+S155*AK155+T155*AL155+U155*AM155+V155*AN155+W155*AO155)*(1-$F$9) -> 0 | AA155: 219 | AB155: 219 | AC155: 219 | AD155: 229 | AE155: 229 | AF155: 229 | AR155: 316351 | AS155: 316353 | AT155: 316354 | AU155: 316355 | AV155: 316356 | AW155: 316357
B156: [316380]Гарнитур для девочки ДНГ640024н | C156: ластик / хлопок 100% | D156: - / белый+сердечки василек / Зайчик с удочкой / - / василек / - | E156: 219-229 | F156: =IF(MIN(Y156:AO156)=MAX(Y156:AO156),ROUND(MIN(Y156:AO156)*(1-$F$9),0),ROUND(MIN(Y156:AO156)*(1-$F$9),0)&"-"&ROUND(MAX(Y156:AO156)*(1-$F$9),0)) -> 193-202 | X156: =(G156*Y156+H156*Z156+I156*AA156+J156*AB156+K156*AC156+L156*AD156+M156*AE156+N156*AF156+O156*AG156+P156*AH156+Q156*AI156+R156*AJ156+S156*AK156+T156*AL156+U156*AM156+V156*AN156+W156*AO156)*(1-$F$9) -> 0 | AA156: 219 | AB156: 219 | AC156: 219 | AD156: 229 | AE156: 229 | AF156: 229 | AR156: 316379 | AS156: 316381 | AT156: 316382 | AU156: 316383 | AV156: 316384 | AW156: 316385
B157: [316152]Майка для девочки ДНМ120024 | C157: ластик / хлопок 100% | D157: белый / - / Зайчик с удочкой / - / василек / - | E157: 130-140 | F157: =IF(MIN(Y157:AO157)=MAX(Y157:AO157),ROUND(MIN(Y157:AO157)*(1-$F$9),0),ROUND(MIN(Y157:AO157)*(1-$F$9),0)&"-"&ROUND(MAX(Y157:AO157)*(1-$F$9),0)) -> 114-123 | X157: =(G157*Y157+H157*Z157+I157*AA157+J157*AB157+K157*AC157+L157*AD157+M157*AE157+N157*AF157+O157*AG157+P157*AH157+Q157*AI157+R157*AJ157+S157*AK157+T157*AL157+U157*AM157+V157*AN157+W157*AO157)*(1-$F$9) -> 0 | AA157: 130 | AB157: 130 | AC157: 130 | AD157: 140 | AE157: 140 | AF157: 140 | AR157: 316151 | AS157: 316153 | AT157: 316154 | AU157: 316155 | AV157: 316156 | AW157: 316157
B158: [316145]Майка для девочки ДНМ120024 | C158: ластик / хлопок 100% | D158: белый / - / Зайчики с сердцами / - / фуксия / - | E158: 130-140 | F158: =IF(MIN(Y158:AO158)=MAX(Y158:AO158),ROUND(MIN(Y158:AO158)*(1-$F$9),0),ROUND(MIN(Y158:AO158)*(1-$F$9),0)&"-"&ROUND(MAX(Y158:AO158)*(1-$F$9),0)) -> 114-123 | X158: =(G158*Y158+H158*Z158+I158*AA158+J158*AB158+K158*AC158+L158*AD158+M158*AE158+N158*AF158+O158*AG158+P158*AH158+Q158*AI158+R158*AJ158+S158*AK158+T158*AL158+U158*AM158+V158*AN158+W158*AO158)*(1-$F$9) -> 0 | AA158: 130 | AB158: 130 | AC158: 130 | AD158: 140 | AE158: 140 | AF158: 140 | AR158: 316144 | AS158: 316146 | AT158: 316147 | AU158: 316148 | AV158: 316149 | AW158: 316150
B159: [316159]Майка для девочки ДНМ120024н | C159: ластик / хлопок 100% | D159: - / сердечки василек / - / - / сердечки василек / - | E159: 130-140 | F159: =IF(MIN(Y159:AO159)=MAX(Y159:AO159),ROUND(MIN(Y159:AO159)*(1-$F$9),0),ROUND(MIN(Y159:AO159)*(1-$F$9),0)&"-"&ROUND(MAX(Y159:AO159)*(1-$F$9),0)) -> 114-123 | X159: =(G159*Y159+H159*Z159+I159*AA159+J159*AB159+K159*AC159+L159*AD159+M159*AE159+N159*AF159+O159*AG159+P159*AH159+Q159*AI159+R159*AJ159+S159*AK159+T159*AL159+U159*AM159+V159*AN159+W159*AO159)*(1-$F$9) -> 0 | AA159: 130 | AB159: 130 | AC159: 130 | AD159: 140 | AE159: 140 | AF159: 140 | AR159: 316158 | AS159: 316160 | AT159: 316161 | AU159: 316162 | AV159: 316163 | AW159: 316164
B160: [316166]Майка для девочки ДНМ120024н | C160: ластик / хлопок 100% | D160: - / сердечки фуксия / - / - / фуксия / - | E160: 130-140 | F160: =IF(MIN(Y160:AO160)=MAX(Y160:AO160),ROUND(MIN(Y160:AO160)*(1-$F$9),0),ROUND(MIN(Y160:AO160)*(1-$F$9),0)&"-"&ROUND(MAX(Y160:AO160)*(1-$F$9),0)) -> 114-123 | X160: =(G160*Y160+H160*Z160+I160*AA160+J160*AB160+K160*AC160+L160*AD160+M160*AE160+N160*AF160+O160*AG160+P160*AH160+Q160*AI160+R160*AJ160+S160*AK160+T160*AL160+U160*AM160+V160*AN160+W160*AO160)*(1-$F$9) -> 0 | AA160: 130 | AB160: 130 | AC160: 130 | AD160: 140 | AE160: 140 | AF160: 140 | AR160: 316165 | AS160: 316167 | AT160: 316168 | AU160: 316169 | AV160: 316170 | AW160: 316171
B161: [316180]Майка для девочки ДНМ154024 | C161: ластик / хлопок 100% | D161: белый / - / Зайчик с удочкой / - / василек / - | E161: 130-140 | F161: =IF(MIN(Y161:AO161)=MAX(Y161:AO161),ROUND(MIN(Y161:AO161)*(1-$F$9),0),ROUND(MIN(Y161:AO161)*(1-$F$9),0)&"-"&ROUND(MAX(Y161:AO161)*(1-$F$9),0)) -> 114-123 | X161: =(G161*Y161+H161*Z161+I161*AA161+J161*AB161+K161*AC161+L161*AD161+M161*AE161+N161*AF161+O161*AG161+P161*AH161+Q161*AI161+R161*AJ161+S161*AK161+T161*AL161+U161*AM161+V161*AN161+W161*AO161)*(1-$F$9) -> 0 | AA161: 130 | AB161: 130 | AC161: 130 | AD161: 140 | AE161: 140 | AF161: 140 | AR161: 316179 | AS161: 316181 | AT161: 316182 | AU161: 316183 | AV161: 316184 | AW161: 316185
B162: [316194]Майка для девочки ДНМ154024н | C162: ластик / хлопок 100% | D162: - / сердечки фуксия / - / - / фуксия / - | E162: 130-140 | F162: =IF(MIN(Y162:AO162)=MAX(Y162:AO162),ROUND(MIN(Y162:AO162)*(1-$F$9),0),ROUND(MIN(Y162:AO162)*(1-$F$9),0)&"-"&ROUND(MAX(Y162:AO162)*(1-$F$9),0)) -> 114-123 | X162: =(G162*Y162+H162*Z162+I162*AA162+J162*AB162+K162*AC162+L162*AD162+M162*AE162+N162*AF162+O162*AG162+P162*AH162+Q162*AI162+R162*AJ162+S162*AK162+T162*AL162+U162*AM162+V162*AN162+W162*AO162)*(1-$F$9) -> 0 | AA162: 130 | AB162: 130 | AC162: 130 | AD162: 140 | AE162: 140 | AF162: 140 | AR162: 316193 | AS162: 316195 | AT162: 316196 | AU162: 316197 | AV162: 316198 | AW162: 316199
B163: [316201]Трусы для девочки ДНТ418024н | C163: ластик / хлопок 100% | D163: - / сердечки василек / - / - / василек / - | E163: 89 | F163: =IF(MIN(Y163:AO163)=MAX(Y163:AO163),ROUND(MIN(Y163:AO163)*(1-$F$9),0),ROUND(MIN(Y163:AO163)*(1-$F$9),0)&"-"&ROUND(MAX(Y163:AO163)*(1-$F$9),0)) -> 78 | X163: =(G163*Y163+H163*Z163+I163*AA163+J163*AB163+K163*AC163+L163*AD163+M163*AE163+N163*AF163+O163*AG163+P163*AH163+Q163*AI163+R163*AJ163+S163*AK163+T163*AL163+U163*AM163+V163*AN163+W163*AO163)*(1-$F$9) -> 0 | AA163: 89 | AB163: 89 | AC163: 89 | AD163: 89 | AE163: 89 | AF163: 89 | AR163: 316200 | AS163: 316202 | AT163: 316203 | AU163: 316204 | AV163: 316205 | AW163: 316206
B164: [316215]Трусы для девочки ДНТ418024н | C164: ластик / хлопок 100% | D164: - / сердечки фуксия / - / - / фуксия / - | E164: 89 | F164: =IF(MIN(Y164:AO164)=MAX(Y164:AO164),ROUND(MIN(Y164:AO164)*(1-$F$9),0),ROUND(MIN(Y164:AO164)*(1-$F$9),0)&"-"&ROUND(MAX(Y164:AO164)*(1-$F$9),0)) -> 78 | X164: =(G164*Y164+H164*Z164+I164*AA164+J164*AB164+K164*AC164+L164*AD164+M164*AE164+N164*AF164+O164*AG164+P164*AH164+Q164*AI164+R164*AJ164+S164*AK164+T164*AL164+U164*AM164+V164*AN164+W164*AO164)*(1-$F$9) -> 0 | AA164: 89 | AB164: 89 | AC164: 89 | AD164: 89 | AE164: 89 | AF164: 89 | AR164: 316214 | AS164: 316216 | AT164: 316217 | AU164: 316218 | AV164: 316219 | AW164: 316220
B165: Коллекция "Зайчата"
B166: [228077]Гарнитур для девочки ДНГ553001 | C166: кулир / хлопок 100% | D166: белый+оранжевый / - / Кролик бежит+Кролик малый / оранжевый / - / - | E166: 225 | F166: =IF(MIN(Y166:AO166)=MAX(Y166:AO166),ROUND(MIN(Y166:AO166)*(1-$F$9),0),ROUND(MIN(Y166:AO166)*(1-$F$9),0)&"-"&ROUND(MAX(Y166:AO166)*(1-$F$9),0)) -> 198 | X166: =(G166*Y166+H166*Z166+I166*AA166+J166*AB166+K166*AC166+L166*AD166+M166*AE166+N166*AF166+O166*AG166+P166*AH166+Q166*AI166+R166*AJ166+S166*AK166+T166*AL166+U166*AM166+V166*AN166+W166*AO166)*(1-$F$9) -> 0 | AA166: 225 | AB166: 225 | AC166: 225 | AD166: 225 | AE166: 225 | AR166: 218446 | AS166: 218447 | AT166: 218448 | AU166: 218449 | AV166: 278481
B167: [228081]Майка для девочки ДНМ665001 | C167: кулир / хлопок 100% | D167: белый / - / Кролик бежит / - / - / - | E167: 130 | F167: =IF(MIN(Y167:AO167)=MAX(Y167:AO167),ROUND(MIN(Y167:AO167)*(1-$F$9),0),ROUND(MIN(Y167:AO167)*(1-$F$9),0)&"-"&ROUND(MAX(Y167:AO167)*(1-$F$9),0)) -> 114 | X167: =(G167*Y167+H167*Z167+I167*AA167+J167*AB167+K167*AC167+L167*AD167+M167*AE167+N167*AF167+O167*AG167+P167*AH167+Q167*AI167+R167*AJ167+S167*AK167+T167*AL167+U167*AM167+V167*AN167+W167*AO167)*(1-$F$9) -> 0 | AA167: 130 | AB167: 130 | AC167: 130 | AD167: 130 | AE167: 130 | AR167: 218502 | AS167: 218503 | AT167: 218504 | AU167: 218505 | AV167: 278485
B168: [228082]Майка для девочки ДНМ665001 | C168: кулир / хлопок 100% | D168: белый / - / Кролик лежит / - / - / - | E168: 130 | F168: =IF(MIN(Y168:AO168)=MAX(Y168:AO168),ROUND(MIN(Y168:AO168)*(1-$F$9),0),ROUND(MIN(Y168:AO168)*(1-$F$9),0)&"-"&ROUND(MAX(Y168:AO168)*(1-$F$9),0)) -> 114 | X168: =(G168*Y168+H168*Z168+I168*AA168+J168*AB168+K168*AC168+L168*AD168+M168*AE168+N168*AF168+O168*AG168+P168*AH168+Q168*AI168+R168*AJ168+S168*AK168+T168*AL168+U168*AM168+V168*AN168+W168*AO168)*(1-$F$9) -> 0 | AA168: 130 | AB168: 130 | AC168: 130 | AD168: 130 | AE168: 130 | AR168: 218506 | AS168: 218507 | AT168: 218508 | AU168: 218509 | AV168: 278486
B169: [228085]Майка для девочки ДНМ973001 | C169: кулир / хлопок 100% | D169: белый / - / Кролик бежит / - / - / - | E169: 130 | F169: =IF(MIN(Y169:AO169)=MAX(Y169:AO169),ROUND(MIN(Y169:AO169)*(1-$F$9),0),ROUND(MIN(Y169:AO169)*(1-$F$9),0)&"-"&ROUND(MAX(Y169:AO169)*(1-$F$9),0)) -> 114 | X169: =(G169*Y169+H169*Z169+I169*AA169+J169*AB169+K169*AC169+L169*AD169+M169*AE169+N169*AF169+O169*AG169+P169*AH169+Q169*AI169+R169*AJ169+S169*AK169+T169*AL169+U169*AM169+V169*AN169+W169*AO169)*(1-$F$9) -> 0 | AA169: 130 | AB169: 130 | AC169: 130 | AD169: 130 | AE169: 130 | AR169: 218514 | AS169: 218515 | AT169: 218516 | AU169: 218517 | AV169: 278488
B170: [228086]Майка для девочки ДНМ973001 | C170: кулир / хлопок 100% | D170: белый / - / Кролик лежит / - / - / - | E170: 130 | F170: =IF(MIN(Y170:AO170)=MAX(Y170:AO170),ROUND(MIN(Y170:AO170)*(1-$F$9),0),ROUND(MIN(Y170:AO170)*(1-$F$9),0)&"-"&ROUND(MAX(Y170:AO170)*(1-$F$9),0)) -> 114 | X170: =(G170*Y170+H170*Z170+I170*AA170+J170*AB170+K170*AC170+L170*AD170+M170*AE170+N170*AF170+O170*AG170+P170*AH170+Q170*AI170+R170*AJ170+S170*AK170+T170*AL170+U170*AM170+V170*AN170+W170*AO170)*(1-$F$9) -> 0 | AA170: 130 | AB170: 130 | AC170: 130 | AD170: 130 | AE170: 130 | AR170: 218518 | AS170: 218519 | AT170: 218520 | AU170: 218521 | AV170: 278489
B171: [228089]Трусы для девочки ДНТ034001 | C171: кулир / хлопок 100% | D171: белый / - / Кролик малый / - / - / - | E171: 95 | F171: =IF(MIN(Y171:AO171)=MAX(Y171:AO171),ROUND(MIN(Y171:AO171)*(1-$F$9),0),ROUND(MIN(Y171:AO171)*(1-$F$9),0)&"-"&ROUND(MAX(Y171:AO171)*(1-$F$9),0)) -> 84 | X171: =(G171*Y171+H171*Z171+I171*AA171+J171*AB171+K171*AC171+L171*AD171+M171*AE171+N171*AF171+O171*AG171+P171*AH171+Q171*AI171+R171*AJ171+S171*AK171+T171*AL171+U171*AM171+V171*AN171+W171*AO171)*(1-$F$9) -> 0 | AA171: 95 | AB171: 95 | AC171: 95 | AD171: 95 | AE171: 95 | AR171: 218526 | AS171: 218527 | AT171: 218528 | AU171: 218529 | AV171: 278491
B172: [228091]Трусы для девочки ДНТ034001 | C172: кулир / хлопок 100% | D172: оранжевый / - / Кролик малый / - / - / - | E172: 95 | F172: =IF(MIN(Y172:AO172)=MAX(Y172:AO172),ROUND(MIN(Y172:AO172)*(1-$F$9),0),ROUND(MIN(Y172:AO172)*(1-$F$9),0)&"-"&ROUND(MAX(Y172:AO172)*(1-$F$9),0)) -> 84 | X172: =(G172*Y172+H172*Z172+I172*AA172+J172*AB172+K172*AC172+L172*AD172+M172*AE172+N172*AF172+O172*AG172+P172*AH172+Q172*AI172+R172*AJ172+S172*AK172+T172*AL172+U172*AM172+V172*AN172+W172*AO172)*(1-$F$9) -> 0 | AA172: 95 | AB172: 95 | AC172: 95 | AD172: 95 | AE172: 95 | AR172: 218530 | AS172: 218531 | AT172: 218532 | AU172: 218533 | AV172: 278492
B173: Коллекция "Зверушки"
B174: [291048]Гарнитур для девочки ДНГ453001н | C174: кулир / хлопок 100% | D174: - / белый+горошек на ярко-розовом / Кошка / горошек на ярко-розовом / горошек на ярко-розовом / - | E174: 225-235 | F174: =IF(MIN(Y174:AO174)=MAX(Y174:AO174),ROUND(MIN(Y174:AO174)*(1-$F$9),0),ROUND(MIN(Y174:AO174)*(1-$F$9),0)&"-"&ROUND(MAX(Y174:AO174)*(1-$F$9),0)) -> 198-207 | X174: =(G174*Y174+H174*Z174+I174*AA174+J174*AB174+K174*AC174+L174*AD174+M174*AE174+N174*AF174+O174*AG174+P174*AH174+Q174*AI174+R174*AJ174+S174*AK174+T174*AL174+U174*AM174+V174*AN174+W174*AO174)*(1-$F$9) -> 0 | AA174: 225 | AB174: 225 | AC174: 225 | AD174: 235 | AE174: 235 | AF174: 235 | AR174: 291047 | AS174: 291049 | AT174: 291050 | AU174: 291051 | AV174: 291052 | AW174: 291053
B175: [291061]Гарнитур для девочки ДНГ681001н | C175: кулир / хлопок 100% | D175: - / белый+горошек на бирюзе / Еж / горошек на бирюзе / горошек на бирюзе / - | E175: 225-235 | F175: =IF(MIN(Y175:AO175)=MAX(Y175:AO175),ROUND(MIN(Y175:AO175)*(1-$F$9),0),ROUND(MIN(Y175:AO175)*(1-$F$9),0)&"-"&ROUND(MAX(Y175:AO175)*(1-$F$9),0)) -> 198-207 | X175: =(G175*Y175+H175*Z175+I175*AA175+J175*AB175+K175*AC175+L175*AD175+M175*AE175+N175*AF175+O175*AG175+P175*AH175+Q175*AI175+R175*AJ175+S175*AK175+T175*AL175+U175*AM175+V175*AN175+W175*AO175)*(1-$F$9) -> 0 | AA175: 225 | AB175: 225 | AC175: 225 | AD175: 235 | AE175: 235 | AF175: 235 | AR175: 291060 | AS175: 291062 | AT175: 291063 | AU175: 291064 | AV175: 291065 | AW175: 291066
B176: [320482]Гарнитур для мальчика ПНГ173024 | C176: ластик / хлопок 100% | D176: белый+василек / - / Медведь / василек / василек / - | E176: 245 | F176: =IF(MIN(Y176:AO176)=MAX(Y176:AO176),ROUND(MIN(Y176:AO176)*(1-$F$9),0),ROUND(MIN(Y176:AO176)*(1-$F$9),0)&"-"&ROUND(MAX(Y176:AO176)*(1-$F$9),0)) -> 216 | X176: =(G176*Y176+H176*Z176+I176*AA176+J176*AB176+K176*AC176+L176*AD176+M176*AE176+N176*AF176+O176*AG176+P176*AH176+Q176*AI176+R176*AJ176+S176*AK176+T176*AL176+U176*AM176+V176*AN176+W176*AO176)*(1-$F$9) -> 0 | AA176: 245 | AB176: 245 | AC176: 245 | AD176: 245 | AE176: 245 | AR176: 320481 | AS176: 320487 | AT176: 320491 | AU176: 320495 | AV176: 320499
B177: [320484]Гарнитур для мальчика ПНГ173024 | C177: ластик / хлопок 100% | D177: белый+василек / - / Собака / василек / василек / - | E177: 245 | F177: =IF(MIN(Y177:AO177)=MAX(Y177:AO177),ROUND(MIN(Y177:AO177)*(1-$F$9),0),ROUND(MIN(Y177:AO177)*(1-$F$9),0)&"-"&ROUND(MAX(Y177:AO177)*(1-$F$9),0)) -> 216 | X177: =(G177*Y177+H177*Z177+I177*AA177+J177*AB177+K177*AC177+L177*AD177+M177*AE177+N177*AF177+O177*AG177+P177*AH177+Q177*AI177+R177*AJ177+S177*AK177+T177*AL177+U177*AM177+V177*AN177+W177*AO177)*(1-$F$9) -> 0 | AA177: 245 | AB177: 245 | AC177: 245 | AD177: 245 | AE177: 245 | AR177: 320483 | AS177: 320488 | AT177: 320492 | AU177: 320496 | AV177: 320500
B178: [320502]Гарнитур для мальчика ПНГ474024 | C178: ластик / хлопок 100% | D178: белый+василек / - / Волк / василек / василек / - | E178: 265 | F178: =IF(MIN(Y178:AO178)=MAX(Y178:AO178),ROUND(MIN(Y178:AO178)*(1-$F$9),0),ROUND(MIN(Y178:AO178)*(1-$F$9),0)&"-"&ROUND(MAX(Y178:AO178)*(1-$F$9),0)) -> 233 | X178: =(G178*Y178+H178*Z178+I178*AA178+J178*AB178+K178*AC178+L178*AD178+M178*AE178+N178*AF178+O178*AG178+P178*AH178+Q178*AI178+R178*AJ178+S178*AK178+T178*AL178+U178*AM178+V178*AN178+W178*AO178)*(1-$F$9) -> 0 | AA178: 265 | AB178: 265 | AC178: 265 | AD178: 265 | AE178: 265 | AR178: 320501 | AS178: 320507 | AT178: 320510 | AU178: 320513 | AV178: 320516
B179: [290940]Майка для девочки ДНМ120001 | C179: кулир / хлопок 100% | D179: - / белый+горошек на бирюзе / Еж / - / горошек на бирюзе / - | E179: 130-140 | F179: =IF(MIN(Y179:AO179)=MAX(Y179:AO179),ROUND(MIN(Y179:AO179)*(1-$F$9),0),ROUND(MIN(Y179:AO179)*(1-$F$9),0)&"-"&ROUND(MAX(Y179:AO179)*(1-$F$9),0)) -> 114-123 | X179: =(G179*Y179+H179*Z179+I179*AA179+J179*AB179+K179*AC179+L179*AD179+M179*AE179+N179*AF179+O179*AG179+P179*AH179+Q179*AI179+R179*AJ179+S179*AK179+T179*AL179+U179*AM179+V179*AN179+W179*AO179)*(1-$F$9) -> 0 | AA179: 130 | AB179: 130 | AC179: 130 | AD179: 140 | AE179: 140 | AF179: 140 | AR179: 290939 | AS179: 290941 | AT179: 290942 | AU179: 290943 | AV179: 290944 | AW179: 290945
B180: [290947]Майка для девочки ДНМ120001 | C180: кулир / хлопок 100% | D180: - / белый+горошек на бирюзе / Кошка / - / горошек на бирюзе / - | E180: 130-140 | F180: =IF(MIN(Y180:AO180)=MAX(Y180:AO180),ROUND(MIN(Y180:AO180)*(1-$F$9),0),ROUND(MIN(Y180:AO180)*(1-$F$9),0)&"-"&ROUND(MAX(Y180:AO180)*(1-$F$9),0)) -> 114-123 | X180: =(G180*Y180+H180*Z180+I180*AA180+J180*AB180+K180*AC180+L180*AD180+M180*AE180+N180*AF180+O180*AG180+P180*AH180+Q180*AI180+R180*AJ180+S180*AK180+T180*AL180+U180*AM180+V180*AN180+W180*AO180)*(1-$F$9) -> 0 | AA180: 130 | AB180: 130 | AC180: 130 | AD180: 140 | AE180: 140 | AF180: 140 | AR180: 290946 | AS180: 290948 | AT180: 290949 | AU180: 290950 | AV180: 290951 | AW180: 290952
B181: [290954]Майка для девочки ДНМ120001 | C181: кулир / хлопок 100% | D181: - / белый+горошек на ярко-розовом / Еж / - / горошек на ярко-розовом / - | E181: 130-140 | F181: =IF(MIN(Y181:AO181)=MAX(Y181:AO181),ROUND(MIN(Y181:AO181)*(1-$F$9),0),ROUND(MIN(Y181:AO181)*(1-$F$9),0)&"-"&ROUND(MAX(Y181:AO181)*(1-$F$9),0)) -> 114-123 | X181: =(G181*Y181+H181*Z181+I181*AA181+J181*AB181+K181*AC181+L181*AD181+M181*AE181+N181*AF181+O181*AG181+P181*AH181+Q181*AI181+R181*AJ181+S181*AK181+T181*AL181+U181*AM181+V181*AN181+W181*AO181)*(1-$F$9) -> 0 | AA181: 130 | AB181: 130 | AC181: 130 | AD181: 140 | AE181: 140 | AF181: 140 | AR181: 290953 | AS181: 290955 | AT181: 290956 | AU181: 290957 | AV181: 290958 | AW181: 290959
B182: [290961]Майка для девочки ДНМ120001 | C182: кулир / хлопок 100% | D182: - / белый+горошек на ярко-розовом / Заяц / - / горошек на ярко-розовом / - | E182: 130-140 | F182: =IF(MIN(Y182:AO182)=MAX(Y182:AO182),ROUND(MIN(Y182:AO182)*(1-$F$9),0),ROUND(MIN(Y182:AO182)*(1-$F$9),0)&"-"&ROUND(MAX(Y182:AO182)*(1-$F$9),0)) -> 114-123 | X182: =(G182*Y182+H182*Z182+I182*AA182+J182*AB182+K182*AC182+L182*AD182+M182*AE182+N182*AF182+O182*AG182+P182*AH182+Q182*AI182+R182*AJ182+S182*AK182+T182*AL182+U182*AM182+V182*AN182+W182*AO182)*(1-$F$9) -> 0 | AA182: 130 | AB182: 130 | AC182: 130 | AD182: 140 | AE182: 140 | AF182: 140 | AR182: 290960 | AS182: 290962 | AT182: 290963 | AU182: 290964 | AV182: 290965 | AW182: 290966
B183: [290968]Майка для девочки ДНМ120001 | C183: кулир / хлопок 100% | D183: - / белый+горошек на ярко-розовом / Кошка / - / горошек на ярко-розовом / - | E183: 130-140 | F183: =IF(MIN(Y183:AO183)=MAX(Y183:AO183),ROUND(MIN(Y183:AO183)*(1-$F$9),0),ROUND(MIN(Y183:AO183)*(1-$F$9),0)&"-"&ROUND(MAX(Y183:AO183)*(1-$F$9),0)) -> 114-123 | X183: =(G183*Y183+H183*Z183+I183*AA183+J183*AB183+K183*AC183+L183*AD183+M183*AE183+N183*AF183+O183*AG183+P183*AH183+Q183*AI183+R183*AJ183+S183*AK183+T183*AL183+U183*AM183+V183*AN183+W183*AO183)*(1-$F$9) -> 0 | AA183: 130 | AB183: 130 | AC183: 130 | AD183: 140 | AE183: 140 | AF183: 140 | AR183: 290967 | AS183: 290969 | AT183: 290970 | AU183: 290971 | AV183: 290972 | AW183: 290973
B184: [290975]Майка для девочки ДНМ154001 | C184: кулир / хлопок 100% | D184: - / белый+горошек на бирюзе / Заяц / - / горошек на бирюзе / - | E184: 130-140 | F184: =IF(MIN(Y184:AO184)=MAX(Y184:AO184),ROUND(MIN(Y184:AO184)*(1-$F$9),0),ROUND(MIN(Y184:AO184)*(1-$F$9),0)&"-"&ROUND(MAX(Y184:AO184)*(1-$F$9),0)) -> 114-123 | X184: =(G184*Y184+H184*Z184+I184*AA184+J184*AB184+K184*AC184+L184*AD184+M184*AE184+N184*AF184+O184*AG184+P184*AH184+Q184*AI184+R184*AJ184+S184*AK184+T184*AL184+U184*AM184+V184*AN184+W184*AO184)*(1-$F$9) -> 0 | AA184: 130 | AB184: 130 | AC184: 130 | AD184: 140 | AE184: 140 | AF184: 140 | AR184: 291192 | AS184: 291193 | AT184: 290974 | AU184: 290976 | AV184: 290977 | AW184: 290978
B185: [290980]Майка для девочки ДНМ154001 | C185: кулир / хлопок 100% | D185: - / белый+горошек на бирюзе / Кошка / - / горошек на бирюзе / - | E185: 130-140 | F185: =IF(MIN(Y185:AO185)=MAX(Y185:AO185),ROUND(MIN(Y185:AO185)*(1-$F$9),0),ROUND(MIN(Y185:AO185)*(1-$F$9),0)&"-"&ROUND(MAX(Y185:AO185)*(1-$F$9),0)) -> 114-123 | X185: =(G185*Y185+H185*Z185+I185*AA185+J185*AB185+K185*AC185+L185*AD185+M185*AE185+N185*AF185+O185*AG185+P185*AH185+Q185*AI185+R185*AJ185+S185*AK185+T185*AL185+U185*AM185+V185*AN185+W185*AO185)*(1-$F$9) -> 0 | AA185: 130 | AB185: 130 | AC185: 130 | AD185: 140 | AE185: 140 | AF185: 140 | AR185: 290979 | AS185: 290981 | AT185: 290982 | AU185: 290983 | AV185: 290984 | AW185: 290985
B186: [290987]Майка для девочки ДНМ154001 | C186: кулир / хлопок 100% | D186: - / белый+горошек на ярко-розовом / Еж / - / горошек на ярко-розовом / - | E186: 130-140 | F186: =IF(MIN(Y186:AO186)=MAX(Y186:AO186),ROUND(MIN(Y186:AO186)*(1-$F$9),0),ROUND(MIN(Y186:AO186)*(1-$F$9),0)&"-"&ROUND(MAX(Y186:AO186)*(1-$F$9),0)) -> 114-123 | X186: =(G186*Y186+H186*Z186+I186*AA186+J186*AB186+K186*AC186+L186*AD186+M186*AE186+N186*AF186+O186*AG186+P186*AH186+Q186*AI186+R186*AJ186+S186*AK186+T186*AL186+U186*AM186+V186*AN186+W186*AO186)*(1-$F$9) -> 0 | AA186: 130 | AB186: 130 | AC186: 130 | AD186: 140 | AE186: 140 | AF186: 140 | AR186: 290986 | AS186: 290988 | AT186: 290989 | AU186: 290990 | AV186: 290991 | AW186: 290992
B187: [290994]Майка для девочки ДНМ154001 | C187: кулир / хлопок 100% | D187: - / белый+горошек на ярко-розовом / Заяц / - / горошек на ярко-розовом / - | E187: 130-140 | F187: =IF(MIN(Y187:AO187)=MAX(Y187:AO187),ROUND(MIN(Y187:AO187)*(1-$F$9),0),ROUND(MIN(Y187:AO187)*(1-$F$9),0)&"-"&ROUND(MAX(Y187:AO187)*(1-$F$9),0)) -> 114-123 | X187: =(G187*Y187+H187*Z187+I187*AA187+J187*AB187+K187*AC187+L187*AD187+M187*AE187+N187*AF187+O187*AG187+P187*AH187+Q187*AI187+R187*AJ187+S187*AK187+T187*AL187+U187*AM187+V187*AN187+W187*AO187)*(1-$F$9) -> 0 | AA187: 130 | AB187: 130 | AC187: 130 | AD187: 140 | AE187: 140 | AF187: 140 | AR187: 290993 | AS187: 290995 | AT187: 290996 | AU187: 290997 | AV187: 290998 | AW187: 290999
B188: [291001]Майка для девочки ДНМ154001 | C188: кулир / хлопок 100% | D188: - / белый+горошек на ярко-розовом / Кошка / - / горошек на ярко-розовом / - | E188: 130-140 | F188: =IF(MIN(Y188:AO188)=MAX(Y188:AO188),ROUND(MIN(Y188:AO188)*(1-$F$9),0),ROUND(MIN(Y188:AO188)*(1-$F$9),0)&"-"&ROUND(MAX(Y188:AO188)*(1-$F$9),0)) -> 114-123 | X188: =(G188*Y188+H188*Z188+I188*AA188+J188*AB188+K188*AC188+L188*AD188+M188*AE188+N188*AF188+O188*AG188+P188*AH188+Q188*AI188+R188*AJ188+S188*AK188+T188*AL188+U188*AM188+V188*AN188+W188*AO188)*(1-$F$9) -> 0 | AA188: 130 | AB188: 130 | AC188: 130 | AD188: 140 | AE188: 140 | AF188: 140 | AR188: 291000 | AS188: 291002 | AT188: 291003 | AU188: 291004 | AV188: 291005 | AW188: 291006
B189: [228185]Майка для девочки ДНМ973001 | C189: кулир / хлопок 100% | D189: белый / - / Заяц / - / - / - | E189: 130-140 | F189: =IF(MIN(Y189:AO189)=MAX(Y189:AO189),ROUND(MIN(Y189:AO189)*(1-$F$9),0),ROUND(MIN(Y189:AO189)*(1-$F$9),0)&"-"&ROUND(MAX(Y189:AO189)*(1-$F$9),0)) -> 114-123 | X189: =(G189*Y189+H189*Z189+I189*AA189+J189*AB189+K189*AC189+L189*AD189+M189*AE189+N189*AF189+O189*AG189+P189*AH189+Q189*AI189+R189*AJ189+S189*AK189+T189*AL189+U189*AM189+V189*AN189+W189*AO189)*(1-$F$9) -> 0 | Y189: 130 | Z189: 130 | AA189: 130 | AB189: 130 | AC189: 130 | AD189: 140 | AE189: 140 | AF189: 140 | AP189: 189602 | AQ189: 189603 | AR189: 189604 | AS189: 189605 | AT189: 189606 | AU189: 189607 | AV189: 189608 | AW189: 189609
B190: [228186]Майка для девочки ДНМ973001 | C190: кулир / хлопок 100% | D190: белый / - / Кошка / - / - / - | E190: 130-140 | F190: =IF(MIN(Y190:AO190)=MAX(Y190:AO190),ROUND(MIN(Y190:AO190)*(1-$F$9),0),ROUND(MIN(Y190:AO190)*(1-$F$9),0)&"-"&ROUND(MAX(Y190:AO190)*(1-$F$9),0)) -> 114-123 | X190: =(G190*Y190+H190*Z190+I190*AA190+J190*AB190+K190*AC190+L190*AD190+M190*AE190+N190*AF190+O190*AG190+P190*AH190+Q190*AI190+R190*AJ190+S190*AK190+T190*AL190+U190*AM190+V190*AN190+W190*AO190)*(1-$F$9) -> 0 | Y190: 130 | Z190: 130 | AA190: 130 | AB190: 130 | AC190: 130 | AD190: 140 | AE190: 140 | AF190: 140 | AP190: 189610 | AQ190: 189611 | AR190: 189612 | AS190: 189613 | AT190: 189614 | AU190: 189615 | AV190: 189616 | AW190: 189617
B191: [320520]Майка для мальчика ПНМ009024 | C191: ластик / хлопок 100% | D191: белый+василек / - / Волк / - / василек / - | E191: 135 | F191: =IF(MIN(Y191:AO191)=MAX(Y191:AO191),ROUND(MIN(Y191:AO191)*(1-$F$9),0),ROUND(MIN(Y191:AO191)*(1-$F$9),0)&"-"&ROUND(MAX(Y191:AO191)*(1-$F$9),0)) -> 119 | X191: =(G191*Y191+H191*Z191+I191*AA191+J191*AB191+K191*AC191+L191*AD191+M191*AE191+N191*AF191+O191*AG191+P191*AH191+Q191*AI191+R191*AJ191+S191*AK191+T191*AL191+U191*AM191+V191*AN191+W191*AO191)*(1-$F$9) -> 0 | AA191: 135 | AB191: 135 | AC191: 135 | AD191: 135 | AE191: 135 | AR191: 320519 | AS191: 320529 | AT191: 320534 | AU191: 320539 | AV191: 320544
B192: [320524]Майка для мальчика ПНМ009024 | C192: ластик / хлопок 100% | D192: белый+василек / - / Лев / - / василек / - | E192: 135 | F192: =IF(MIN(Y192:AO192)=MAX(Y192:AO192),ROUND(MIN(Y192:AO192)*(1-$F$9),0),ROUND(MIN(Y192:AO192)*(1-$F$9),0)&"-"&ROUND(MAX(Y192:AO192)*(1-$F$9),0)) -> 119 | X192: =(G192*Y192+H192*Z192+I192*AA192+J192*AB192+K192*AC192+L192*AD192+M192*AE192+N192*AF192+O192*AG192+P192*AH192+Q192*AI192+R192*AJ192+S192*AK192+T192*AL192+U192*AM192+V192*AN192+W192*AO192)*(1-$F$9) -> 0 | AA192: 135 | AB192: 135 | AC192: 135 | AD192: 135 | AE192: 135 | AR192: 320523 | AS192: 320531 | AT192: 320536 | AU192: 320541 | AV192: 320546
B193: [320526]Майка для мальчика ПНМ009024 | C193: ластик / хлопок 100% | D193: белый+василек / - / Медведь / - / василек / - | E193: 135 | F193: =IF(MIN(Y193:AO193)=MAX(Y193:AO193),ROUND(MIN(Y193:AO193)*(1-$F$9),0),ROUND(MIN(Y193:AO193)*(1-$F$9),0)&"-"&ROUND(MAX(Y193:AO193)*(1-$F$9),0)) -> 119 | X193: =(G193*Y193+H193*Z193+I193*AA193+J193*AB193+K193*AC193+L193*AD193+M193*AE193+N193*AF193+O193*AG193+P193*AH193+Q193*AI193+R193*AJ193+S193*AK193+T193*AL193+U193*AM193+V193*AN193+W193*AO193)*(1-$F$9) -> 0 | AA193: 135 | AB193: 135 | AC193: 135 | AD193: 135 | AE193: 135 | AR193: 320525 | AS193: 320532 | AT193: 320537 | AU193: 320542 | AV193: 320547
B194: [320528]Майка для мальчика ПНМ009024 | C194: ластик / хлопок 100% | D194: белый+василек / - / Собака / - / василек / - | E194: 135 | F194: =IF(MIN(Y194:AO194)=MAX(Y194:AO194),ROUND(MIN(Y194:AO194)*(1-$F$9),0),ROUND(MIN(Y194:AO194)*(1-$F$9),0)&"-"&ROUND(MAX(Y194:AO194)*(1-$F$9),0)) -> 119 | X194: =(G194*Y194+H194*Z194+I194*AA194+J194*AB194+K194*AC194+L194*AD194+M194*AE194+N194*AF194+O194*AG194+P194*AH194+Q194*AI194+R194*AJ194+S194*AK194+T194*AL194+U194*AM194+V194*AN194+W194*AO194)*(1-$F$9) -> 0 | AA194: 135 | AB194: 135 | AC194: 135 | AD194: 135 | AE194: 135 | AR194: 320527 | AS194: 320533 | AT194: 320538 | AU194: 320543 | AV194: 320548
B195: [228200]Трусы для девочки ДНТ034001 | C195: кулир / хлопок 100% | D195: белый / - / Бантик в горошек / - / - / - | E195: 95 | F195: =IF(MIN(Y195:AO195)=MAX(Y195:AO195),ROUND(MIN(Y195:AO195)*(1-$F$9),0),ROUND(MIN(Y195:AO195)*(1-$F$9),0)&"-"&ROUND(MAX(Y195:AO195)*(1-$F$9),0)) -> 84 | X195: =(G195*Y195+H195*Z195+I195*AA195+J195*AB195+K195*AC195+L195*AD195+M195*AE195+N195*AF195+O195*AG195+P195*AH195+Q195*AI195+R195*AJ195+S195*AK195+T195*AL195+U195*AM195+V195*AN195+W195*AO195)*(1-$F$9) -> 0 | AA195: 95 | AB195: 95 | AC195: 95 | AD195: 95 | AE195: 95 | AF195: 95 | AR195: 206964 | AS195: 206965 | AT195: 206966 | AU195: 206967 | AV195: 206968 | AW195: 206969
B196: [290477]Трусы для девочки ДНТ034001н | C196: кулир / хлопок 100% | D196: - / горошек красный / - / - / - / - | E196: 95 | F196: =IF(MIN(Y196:AO196)=MAX(Y196:AO196),ROUND(MIN(Y196:AO196)*(1-$F$9),0),ROUND(MIN(Y196:AO196)*(1-$F$9),0)&"-"&ROUND(MAX(Y196:AO196)*(1-$F$9),0)) -> 84 | X196: =(G196*Y196+H196*Z196+I196*AA196+J196*AB196+K196*AC196+L196*AD196+M196*AE196+N196*AF196+O196*AG196+P196*AH196+Q196*AI196+R196*AJ196+S196*AK196+T196*AL196+U196*AM196+V196*AN196+W196*AO196)*(1-$F$9) -> 0 | Y196: 95 | Z196: 95 | AA196: 95 | AB196: 95 | AC196: 95 | AD196: 95 | AE196: 95 | AF196: 95 | AP196: 290476 | AQ196: 290478 | AR196: 290479 | AS196: 290480 | AT196: 290481 | AU196: 290482 | AV196: 290483 | AW196: 290484
B197: [291008]Трусы для девочки ДНТ034001н | C197: кулир / хлопок 100% | D197: - / горошек на бирюзе / - / - / - / - | E197: 95 | F197: =IF(MIN(Y197:AO197)=MAX(Y197:AO197),ROUND(MIN(Y197:AO197)*(1-$F$9),0),ROUND(MIN(Y197:AO197)*(1-$F$9),0)&"-"&ROUND(MAX(Y197:AO197)*(1-$F$9),0)) -> 84 | X197: =(G197*Y197+H197*Z197+I197*AA197+J197*AB197+K197*AC197+L197*AD197+M197*AE197+N197*AF197+O197*AG197+P197*AH197+Q197*AI197+R197*AJ197+S197*AK197+T197*AL197+U197*AM197+V197*AN197+W197*AO197)*(1-$F$9) -> 0 | AA197: 95 | AB197: 95 | AC197: 95 | AD197: 95 | AE197: 95 | AF197: 95 | AR197: 291007 | AS197: 291009 | AT197: 291010 | AU197: 291011 | AV197: 291012 | AW197: 291013
B198: [291015]Трусы для девочки ДНТ034001н | C198: кулир / хлопок 100% | D198: - / горошек на ярко-розовом / - / - / - / - | E198: 95 | F198: =IF(MIN(Y198:AO198)=MAX(Y198:AO198),ROUND(MIN(Y198:AO198)*(1-$F$9),0),ROUND(MIN(Y198:AO198)*(1-$F$9),0)&"-"&ROUND(MAX(Y198:AO198)*(1-$F$9),0)) -> 84 | X198: =(G198*Y198+H198*Z198+I198*AA198+J198*AB198+K198*AC198+L198*AD198+M198*AE198+N198*AF198+O198*AG198+P198*AH198+Q198*AI198+R198*AJ198+S198*AK198+T198*AL198+U198*AM198+V198*AN198+W198*AO198)*(1-$F$9) -> 0 | AA198: 95 | AB198: 95 | AC198: 95 | AD198: 95 | AE198: 95 | AF198: 95 | AR198: 291014 | AS198: 291016 | AT198: 291017 | AU198: 291018 | AV198: 291019 | AW198: 291020
B199: [320550]Трусы для мальчика ПНП700024 | C199: ластик / хлопок 100% | D199: василек / - / - / - / василек / - | E199: 110 | F199: =IF(MIN(Y199:AO199)=MAX(Y199:AO199),ROUND(MIN(Y199:AO199)*(1-$F$9),0),ROUND(MIN(Y199:AO199)*(1-$F$9),0)&"-"&ROUND(MAX(Y199:AO199)*(1-$F$9),0)) -> 97 | X199: =(G199*Y199+H199*Z199+I199*AA199+J199*AB199+K199*AC199+L199*AD199+M199*AE199+N199*AF199+O199*AG199+P199*AH199+Q199*AI199+R199*AJ199+S199*AK199+T199*AL199+U199*AM199+V199*AN199+W199*AO199)*(1-$F$9) -> 0 | AA199: 110 | AB199: 110 | AC199: 110 | AD199: 110 | AE199: 110 | AR199: 320549 | AS199: 320551 | AT199: 320552 | AU199: 320553 | AV199: 320554
B200: [320556]Трусы для мальчика ПНШ720024 | C200: ластик / хлопок 100% | D200: василек / - / - / - / - / - | E200: 130 | F200: =IF(MIN(Y200:AO200)=MAX(Y200:AO200),ROUND(MIN(Y200:AO200)*(1-$F$9),0),ROUND(MIN(Y200:AO200)*(1-$F$9),0)&"-"&ROUND(MAX(Y200:AO200)*(1-$F$9),0)) -> 114 | X200: =(G200*Y200+H200*Z200+I200*AA200+J200*AB200+K200*AC200+L200*AD200+M200*AE200+N200*AF200+O200*AG200+P200*AH200+Q200*AI200+R200*AJ200+S200*AK200+T200*AL200+U200*AM200+V200*AN200+W200*AO200)*(1-$F$9) -> 0 | AA200: 130 | AB200: 130 | AC200: 130 | AD200: 130 | AE200: 130 | AR200: 320555 | AS200: 320557 | AT200: 320558 | AU200: 320559 | AV200: 320560
B201: Коллекция "Королевская клетка"
B202: [489442]Гарнитур для девочки ДНГ318804н | C202: кулир с лайкрой / хлопок 92% + лайкра 8% | D202: - / клетка гусиная лапка черный+красный / - / клетка гусиная лапка черный+красный / черный / - | E202: 310-330 | F202: =IF(MIN(Y202:AO202)=MAX(Y202:AO202),ROUND(MIN(Y202:AO202)*(1-$F$9),0),ROUND(MIN(Y202:AO202)*(1-$F$9),0)&"-"&ROUND(MAX(Y202:AO202)*(1-$F$9),0)) -> 273-290 | X202: =(G202*Y202+H202*Z202+I202*AA202+J202*AB202+K202*AC202+L202*AD202+M202*AE202+N202*AF202+O202*AG202+P202*AH202+Q202*AI202+R202*AJ202+S202*AK202+T202*AL202+U202*AM202+V202*AN202+W202*AO202)*(1-$F$9) -> 0 | AF202: 310 | AG202: 310 | AH202: 310 | AI202: 310 | AJ202: 310 | AK202: 330 | AL202: 330 | AM202: 330 | AW202: 351759 | AX202: 351760 | AY202: 351761 | AZ202: 351762 | BA202: 351763 | BB202: 351764 | BC202: 351765 | BD202: 351766
... 255 more rows
